Workbook

Sheet Chart
B2: =Data!AP182 -> STL | C2: =Data!AQ182 -> 0 | D2: =Data!AR182 -> 0.5432098765
B3: =Data!AP183 -> LAD | C3: =Data!AQ183 -> 2 | D3: =Data!AR183 -> 0.5308641975
B4: =Data!AP184 -> MIL | C4: =Data!AQ184 -> 5 | D4: =Data!AR184 -> 0.512345679
B5: =Data!AP185 -> ARZ | C5: =Data!AQ185 -> 7 | D5: =Data!AR185 -> 0.5
B6: =Data!AP186 -> PHI | C6: =Data!AQ186 -> 7 | D6: =Data!AR186 -> 0.5
B7: =Data!AP187 -> PIT | C7: =Data!AQ187 -> 9 | D7: =Data!AR187 -> 0.487654321
F38: Note: You must enable macros for this workbook to update correctly

Sheet Data
A1: NLC12 | B1: LAD | C1: W | D1: L | F1: PHI | G1: W | H1: L | J1: ARZ | K1: W | L1: L | N1: MIL | O1: W | P1: L | R1: PIT | S1: W | T1: L | V1: STL | W1: W | X1: L | AA1: =B1 -> LAD | AB1: =F1 -> PHI | AC1: =J1 -> ARZ | AD1: =N1 -> MIL | AE1: =R1 -> PIT | AF1: =V1 -> STL | AH1: =AA1 -> LAD | AI1: PHI | AJ1: ARZ | AK1: MIL | AL1: PIT | AM1: STL
A2: 2012-04-04 | C2: 0 | D2: 0 | G2: 0 | H2: 0 | K2: 0 | L2: 0 | O2: 0 | P2: 0 | S2: 0 | T2: 0 | V2: 1 | W2: 1 | X2: 0 | AA2: 0 | AB2: 0 | AC2: 0 | AD2: 0 | AE2: 0 | AF2: 0 | AH2: 0 | AI2: 0 | AJ2: 0 | AK2: 0 | AL2: 0 | AM2: 0
A3: 2012-04-05 | B3: 1 | C3: =C2+IF(B3>0,B3,0) -> 1 | D3: =D2-IF(B3<0,B3,0) -> 0 | F3: 1 | G3: =G2+IF(F3>0,F3,0) -> 1 | H3: =H2-IF(F3<0,F3,0) -> 0 | K3: =K2+IF(J3>0,J3,0) -> 0 | L3: =L2-IF(J3<0,J3,0) -> 0 | O3: =O2+IF(N3>0,N3,0) -> 0 | P3: =P2-IF(N3<0,N3,0) -> 0 | R3: -1 | S3: =S2+IF(R3>0,R3,0) -> 0 | T3: =T2-IF(R3<0,R3,0) -> 1 | W3: =W2+IF(V3>0,V3,0) -> 1 | X3: =X2-IF(V3<0,V3,0) -> 0 | AA3: =C3-D3 -> 1 | AB3: =G3-H3 -> 1 | AC3: =K3-L3 -> 0 | AD3: =O3-P3 -> 0 | AE3: =S3-T3 -> -1 | AF3: =W3-X3 -> 1 | AH3: =(MAX($AA3:$AF3)-AA3)/2 -> 0 | AI3: =(MAX($AA3:$AF3)-AB3)/2 -> 0 | AJ3: =(MAX($AA3:$AF3)-AC3)/2 -> 0.5 | AK3: =(MAX($AA3:$AF3)-AD3)/2 -> 0.5 | AL3: =(MAX($AA3:$AF3)-AE3)/2 -> 1 | AM3: =(MAX($AA3:$AF3)-AF3)/2 -> 0
A4: 2012-04-06 | B4: 1 | C4: 2 | D4: 0 | G4: 1 | H4: 0 | J4: 1 | K4: 1 | L4: 0 | N4: -1 | O4: 0 | P4: 1 | S4: 0 | T4: 1 | V4: 1 | W4: 2 | X4: 0 | AA4: 2 | AB4: 1 | AC4: 1 | AD4: =O4-P4 -> -1 | AE4: -1 | AF4: 2 | AH4: 0 | AI4: 0.5 | AJ4: 0.5 | AK4: 1.5 | AL4: 1.5 | AM4: 0
A5: 2012-04-07 | B5: 1 | C5: 3 | D5: 0 | F5: -1 | G5: 1 | H5: 1 | J5: 1 | K5: 2 | L5: 0 | N5: 1 | O5: 1 | P5: 1 | R5: 1 | S5: 1 | T5: 1 | V5: -1 | W5: 2 | X5: 1 | AA5: 3 | AB5: 0 | AC5: 2 | AD5: =O5-P5 -> 0 | AE5: 0 | AF5: 1 | AH5: 0 | AI5: 1.5 | AJ5: 0.5 | AK5: 1.5 | AL5: 1.5 | AM5: 1
A6: 2012-04-08 | B6: -1 | C6: 3 | D6: 1 | F6: -1 | G6: 1 | H6: 2 | J6: 1 | K6: 3 | L6: 0 | N6: -1 | O6: 1 | P6: 2 | R6: 1 | S6: 2 | T6: 1 | V6: 1 | W6: 3 | X6: 1 | AA6: 2 | AB6: -1 | AC6: 3 | AD6: =O6-P6 -> -1 | AE6: 1 | AF6: 2 | AH6: 0.5 | AI6: 2 | AJ6: 0 | AK6: 2 | AL6: 1 | AM6: 0.5
A7: 2012-04-09 | C7: 3 | D7: 1 | F7: -1 | G7: 1 | H7: 3 | K7: 3 | L7: 0 | N7: 1 | O7: 2 | P7: 2 | S7: 2 | T7: 1 | V7: 1 | W7: 4 | X7: 1 | AA7: 2 | AB7: -2 | AC7: 3 | AD7: =O7-P7 -> 0 | AE7: 1 | AF7: 3 | AH7: 0.5 | AI7: 2.5 | AJ7: 0 | AK7: 1.5 | AL7: 1 | AM7: 0
A8: 2012-04-10 | B8: 1 | C8: 4 | D8: 1 | G8: 1 | H8: 3 | J8: 1 | K8: 4 | L8: 0 | N8: 1 | O8: 3 | P8: 2 | R8: -1 | S8: 2 | T8: 2 | V8: 1 | W8: 5 | X8: 1 | AA8: 3 | AB8: -2 | AC8: 4 | AD8: =O8-P8 -> 1 | AE8: 0 | AF8: 4 | AH8: 0.5 | AI8: 3 | AJ8: 0 | AK8: 1.5 | AL8: 2 | AM8: 0
A9: 2012-04-11 | B9: 1 | C9: 5 | D9: 1 | F9: 1 | G9: 2 | H9: 3 | J9: -1 | K9: 4 | L9: 1 | N9: 1 | O9: =O8+IF(N9>0,N9,0) -> 4 | P9: 2 | R9: -1 | S9: 2 | T9: 3 | V9: -1 | W9: 5 | X9: 2 | AA9: 4 | AB9: -1 | AC9: 3 | AD9: 2 | AE9: -1 | AF9: 3 | AH9: 0 | AI9: 2.5 | AJ9: 0.5 | AK9: 1 | AL9: 2.5 | AM9: 0.5
A10: 2012-04-12 | B10: 1 | C10: 6 | D10: 1 | F10: 1 | G10: 3 | H10: 3 | J10: 1 | K10: 5 | L10: 1 | N10: -1 | O10: 4 | P10: 3 | R10: -1 | S10: 2 | T10: 4 | W10: 5 | X10: 2 | AA10: 5 | AB10: 0 | AC10: 4 | AD10: 1 | AE10: -2 | AF10: 3 | AH10: 0 | AI10: 2.5 | AJ10: 0.5 | AK10: 2 | AL10: 3.5 | AM10: 1
A11: 2012-04-13 | B11: 1 | C11: 7 | D11: 1 | F11: -1 | G11: 3 | H11: 4 | J11: -1 | K11: 5 | L11: 2 | N11: -1 | O11: 4 | P11: 4 | R11: -1 | S11: 2 | T11: 5 | V11: -1 | W11: 5 | X11: 3 | AA11: 6 | AB11: -1 | AC11: 3 | AD11: 0 | AE11: -3 | AF11: 2 | AH11: 0 | AI11: 3.5 | AJ11: 1.5 | AK11: 3 | AL11: 4.5 | AM11: 2
A12: 2012-04-14 | B12: 1 | C12: 8 | D12: 1 | F12: -1 | G12: 3 | H12: 5 | J12: -1 | K12: 5 | L12: 3 | N12: -1 | O12: 4 | P12: 5 | R12: -1 | S12: 2 | T12: 6 | V12: 1 | W12: 6 | X12: 3 | AA12: 7 | AB12: -2 | AC12: 2 | AD12: -1 | AE12: -4 | AF12: 3 | AH12: 0 | AI12: 4.5 | AJ12: 2.5 | AK12: 4 | AL12: 5.5 | AM12: 2
A13: 2012-04-15 | B13: 1 | C13: 9 | D13: 1 | F13: 1 | G13: 4 | H13: 5 | J13: 1 | K13: 6 | L13: 3 | N13: -1 | O13: 4 | P13: 6 | R13: 1 | S13: 3 | T13: 6 | V13: 1 | W13: 7 | X13: 3 | AA13: 8 | AB13: -1 | AC13: 3 | AD13: -2 | AE13: -3 | AF13: 4 | AH13: 0 | AI13: 4.5 | AJ13: 2.5 | AK13: 5 | AL13: 5.5 | AM13: 2
A14: 2012-04-16 | C14: 9 | D14: 1 | F14: 1 | G14: 5 | H14: 5 | J14: 1 | K14: 7 | L14: 3 | O14: 4 | P14: 6 | R14: -1 | S14: 3 | T14: 7 | W14: 7 | X14: 3 | AA14: 8 | AB14: 0 | AC14: 4 | AD14: -2 | AE14: -4 | AF14: 4 | AH14: 0 | AI14: 4 | AJ14: 2 | AK14: 5 | AL14: 6 | AM14: 2
A15: 2012-04-17 | B15: -1 | C15: 9 | D15: 2 | F15: -1 | G15: 5 | H15: 6 | J15: -1 | K15: 7 | L15: 4 | N15: 1 | O15: 5 | P15: 6 | R15: 1 | S15: 4 | T15: 7 | V15: 1 | W15: 8 | X15: 3 | AA15: 7 | AB15: -1 | AC15: 3 | AD15: -1 | AE15: -3 | AF15: 5 | AH15: 0 | AI15: 4 | AJ15: 2 | AK15: 4 | AL15: 5 | AM15: 1
A16: 2012-04-18 | B16: -1 | C16: 9 | D16: 3 | F16: -1 | G16: 5 | H16: 7 | J16: -1 | K16: 7 | L16: 5 | N16: 1 | O16: 6 | P16: 6 | R16: 1 | S16: 5 | T16: 7 | V16: 1 | W16: 9 | X16: 3 | AA16: 6 | AB16: -2 | AC16: 2 | AD16: 0 | AE16: -2 | AF16: 6 | AH16: 0 | AI16: 4 | AJ16: 2 | AK16: 3 | AL16: 4 | AM16: 0
A17: 2012-04-19 | B17: 1 | C17: 10 | D17: 3 | F17: 1 | G17: 6 | H17: 7 | J17: -1 | K17: 7 | L17: 6 | N17: -1 | O17: 6 | P17: 7 | S17: 5 | T17: 7 | V17: -1 | W17: 9 | X17: 4 | AA17: 7 | AB17: -1 | AC17: 1 | AD17: -1 | AE17: -2 | AF17: 5 | AH17: 0 | AI17: 4 | AJ17: 3 | AK17: 4 | AL17: 4.5 | AM17: 1
A18: 2012-04-20 | B18: 1 | C18: 11 | D18: 3 | F18: 1 | G18: 7 | H18: 7 | J18: -1 | K18: 7 | L18: 7 | N18: -1 | O18: 6 | P18: 8 | R18: -1 | S18: 5 | T18: 8 | V18: 1 | W18: 10 | X18: 4 | AA18: 8 | AB18: 0 | AC18: 0 | AD18: -2 | AE18: -3 | AF18: 6 | AH18: 0 | AI18: 4 | AJ18: 4 | AK18: 5 | AL18: 5.5 | AM18: 1
A19: 2012-04-21 | B19: 1 | C19: 12 | D19: 3 | F19: -1 | G19: 7 | H19: 8 | J19: -1 | K19: 7 | L19: 8 | N19: 1 | O19: 7 | P19: 8 | R19: 1 | S19: 6 | T19: 8 | V19: -1 | W19: 10 | X19: 5 | AA19: 9 | AB19: -1 | AC19: -1 | AD19: -1 | AE19: -2 | AF19: 5 | AH19: 0 | AI19: 5 | AJ19: 5 | AK19: 5 | AL19: 5.5 | AM19: 2
A20: 2012-04-22 | B20: -1 | C20: 12 | D20: 4 | F20: -1 | G20: 7 | H20: 9 | J20: 1 | K20: 8 | L20: 8 | N20: -1 | O20: 7 | P20: 9 | R20: -1 | S20: 6 | T20: 9 | V20: 1 | W20: 11 | X20: 5 | AA20: 8 | AB20: -2 | AC20: 0 | AD20: -2 | AE20: -3 | AF20: 6 | AH20: 0 | AI20: 5 | AJ20: 4 | AK20: 5 | AL20: 5.5 | AM20: 1
A21: 2012-04-23 | B21: 1 | C21: 13 | D21: 4 | F21: -1 | G21: 7 | H21: 10 | J21: 1 | K21: 9 | L21: 8 | N21: 1 | O21: 8 | P21: 9 | S21: 6 | T21: 9 | V21: -1 | W21: 11 | X21: 6 | AA21: 9 | AB21: -3 | AC21: 1 | AD21: -1 | AE21: -3 | AF21: 5 | AH21: 0 | AI21: 6 | AJ21: 4 | AK21: 5 | AL21: 6 | AM21: 2
A22: 2012-04-24 | B22: -1 | C22: 13 | D22: 5 | F22: 1 | G22: 8 | H22: 10 | J22: -1 | K22: 9 | L22: 9 | N22: 1 | O22: 9 | P22: 9 | R22: 1 | S22: 7 | T22: 9 | V22: -1 | W22: 11 | X22: 7 | AA22: 8 | AB22: -2 | AC22: 0 | AD22: 0 | AE22: -2 | AF22: 4 | AH22: 0 | AI22: 5 | AJ22: 4 | AK22: 4 | AL22: 5 | AM22: 2
A23: 2012-04-25 | B23: -1 | C23: =C22+IF(B23>0,B23,0) -> 13 | D23: =D22-IF(B23<0,B23,0) -> 6 | F23: 1 | G23: 9 | H23: 10 | J23: -1 | K23: 9 | L23: 10 | N23: -1 | O23: 9 | P23: 10 | R23: 0 | S23: 8 | T23: 10 | V23: 1 | W23: =W22+IF(V23>0,V23,0) -> 12 | X23: =X22-IF(V23<0,V23,0) -> 7 | AA23: 7 | AB23: -1 | AC23: -1 | AD23: -1 | AE23: -2 | AF23: 5 | AH23: 0 | AI23: 4 | AJ23: 4 | AK23: 4 | AL23: 4.5 | AM23: 1
A24: 2012-04-26 | C24: 13 | D24: 6 | G24: 9 | H24: 10 | K24: 9 | L24: 10 | O24: 9 | P24: 10 | S24: 8 | T24: 10 | W24: 12 | X24: 7 | AA24: 7 | AB24: -1 | AC24: -1 | AD24: -1 | AE24: -2 | AF24: 5 | AH24: 0 | AI24: 4 | AJ24: 4 | AK24: 4 | AL24: 4.5 | AM24: 1
A25: 2012-04-27 | B25: 1 | C25: 14 | D25: 6 | F25: -1 | G25: 9 | H25: 11 | J25: 1 | K25: 10 | L25: 10 | N25: -1 | O25: 9 | P25: 11 | R25: -1 | S25: 8 | T25: 11 | V25: 1 | W25: 13 | X25: 7 | AA25: 8 | AB25: -2 | AC25: 0 | AD25: -2 | AE25: -3 | AF25: 6 | AH25: 0 | AI25: 5 | AJ25: 4 | AK25: 5 | AL25: 5.5 | AM25: 1
A26: 2012-04-28 | B26: 1 | C26: 15 | D26: 6 | F26: 1 | G26: 10 | H26: 11 | J26: -1 | K26: 10 | L26: 11 | N26: -1 | O26: 9 | P26: 12 | R26: 1 | S26: 9 | T26: 11 | V26: 1 | W26: 14 | X26: 7 | AA26: 9 | AB26: -1 | AC26: -1 | AD26: -3 | AE26: -2 | AF26: 7 | AH26: 0 | AI26: 5 | AJ26: 5 | AK26: 6 | AL26: 5.5 | AM26: 1
A27: 2012-04-29 | B27: 1 | C27: 16 | D27: 6 | F27: -1 | G27: 10 | H27: 12 | J27: 1 | K27: 11 | L27: 11 | N27: 1 | O27: 10 | P27: 12 | R27: -1 | S27: 9 | T27: 12 | V27: -1 | W27: 14 | X27: 8 | AA27: 10 | AB27: -2 | AC27: 0 | AD27: -2 | AE27: -3 | AF27: 6 | AH27: 0 | AI27: 6 | AJ27: 5 | AK27: 6 | AL27: 6.5 | AM27: 2
A28: 2012-04-30 | B28: -1 | C28: 16 | D28: 7 | F28: 1 | G28: 11 | H28: 12 | J28: 1 | K28: 12 | L28: 11 | N28: 1 | O28: 11 | P28: 12 | R28: 1 | S28: 10 | T28: 12 | W28: 14 | X28: 8 | AA28: 9 | AB28: -1 | AC28: 1 | AD28: -1 | AE28: -2 | AF28: 6 | AH28: 0 | AI28: 5 | AJ28: 4 | AK28: 5 | AL28: 5.5 | AM28: 1.5
A29: 2012-05-01 | B29: 1 | C29: 17 | D29: 7 | F29: 1 | G29: 12 | H29: 12 | J29: 1 | K29: 13 | L29: 11 | N29: -1 | O29: 11 | P29: 13 | R29: -1 | S29: 10 | T29: 13 | V29: 1 | W29: 15 | X29: 8 | AA29: 10 | AB29: 0 | AC29: 2 | AD29: -2 | AE29: -3 | AF29: 7 | AH29: 0 | AI29: 5 | AJ29: 4 | AK29: 6 | AL29: 6.5 | AM29: 1.5
A30: 2012-05-02 | B30: -1 | C30: 17 | D30: 8 | F30: -1 | G30: 12 | H30: 13 | J30: -1 | K30: 13 | L30: 12 | N30: -1 | O30: 11 | P30: 14 | R30: -1 | S30: 10 | T30: 14 | V30: 1 | W30: 16 | X30: 8 | AA30: 9 | AB30: -1 | AC30: 1 | AD30: -3 | AE30: -4 | AF30: 8 | AH30: 0 | AI30: 5 | AJ30: 4 | AK30: 6 | AL30: 6.5 | AM30: 0.5
A31: 2012-05-03 | C31: 17 | D31: 8 | F31: 1 | G31: 13 | H31: 13 | J31: -1 | K31: 13 | L31: 13 | O31: 11 | P31: 14 | R31: 1 | S31: 11 | T31: 14 | V31: -1 | W31: 16 | X31: 9 | AA31: 9 | AB31: 0 | AC31: 0 | AD31: -3 | AE31: -3 | AF31: 7 | AH31: 0 | AI31: 4.5 | AJ31: 4.5 | AK31: 6 | AL31: 6 | AM31: 1
A32: 2012-05-04 | B32: -1 | C32: 17 | D32: 9 | F32: -1 | G32: 13 | H32: 14 | J32: 1 | K32: 14 | L32: 13 | N32: 1 | O32: 12 | P32: 14 | R32: -1 | S32: 11 | T32: 15 | V32: -1 | W32: 16 | X32: 10 | AA32: 8 | AB32: -1 | AC32: 1 | AD32: -2 | AE32: -4 | AF32: 6 | AH32: 0 | AI32: 4.5 | AJ32: 3.5 | AK32: 5 | AL32: 6 | AM32: 1
A33: 2012-05-05 | B33: 1 | C33: 18 | D33: 9 | F33: -1 | G33: 13 | H33: 15 | J33: -1 | K33: 14 | L33: 14 | N33: -1 | O33: 12 | P33: 15 | R33: 1 | S33: 12 | T33: 15 | V33: -1 | W33: 16 | X33: 11 | AA33: 9 | AB33: -2 | AC33: 0 | AD33: -3 | AE33: -3 | AF33: 5 | AH33: 0 | AI33: 5.5 | AJ33: 4.5 | AK33: 6 | AL33: 6 | AM33: 2
A34: 2012-05-06 | B34: -1 | C34: 18 | D34: 10 | F34: 1 | G34: 14 | H34: 15 | J34: -1 | K34: 14 | L34: 15 | N34: -1 | O34: 12 | P34: 16 | R34: -1 | S34: 12 | T34: 16 | V34: 1 | W34: 17 | X34: 11 | AA34: 8 | AB34: -1 | AC34: -1 | AD34: -4 | AE34: -4 | AF34: 6 | AH34: 0 | AI34: 4.5 | AJ34: 4.5 | AK34: 6 | AL34: 6 | AM34: 1
A35: 2012-05-07 | B35: 1 | C35: 19 | D35: 10 | F35: -1 | G35: 14 | H35: 16 | J35: -1 | K35: 14 | L35: 16 | N35: -1 | O35: 12 | P35: 17 | S35: 12 | T35: 16 | V35: 1 | W35: 18 | X35: 11 | AA35: 9 | AB35: -2 | AC35: -2 | AD35: -5 | AE35: -4 | AF35: 7 | AH35: 0 | AI35: 5.5 | AJ35: 5.5 | AK35: 7 | AL35: 6.5 | AM35: 1
A36: 2012-05-08 | B36: -1 | C36: 19 | D36: 11 | F36: -1 | G36: 14 | H36: 17 | J36: -1 | K36: 14 | L36: 17 | N36: 1 | O36: 13 | P36: 17 | R36: 1 | S36: 13 | T36: 16 | V36: 1 | W36: 19 | X36: 11 | AA36: 8 | AB36: -3 | AC36: -3 | AD36: -4 | AE36: -3 | AF36: 8 | AH36: 0 | AI36: 5.5 | AJ36: 5.5 | AK36: 6 | AL36: 5.5 | AM36: 0
A37: 2012-05-09 | B37: 1 | C37: 20 | D37: 11 | F37: -1 | G37: 14 | H37: 18 | J37: -1 | K37: 14 | L37: 18 | N37: -1 | O37: 13 | P37: 18 | R37: 1 | S37: 14 | T37: 16 | V37: 1 | W37: 20 | X37: 11 | AA37: 9 | AB37: -4 | AC37: -4 | AD37: -5 | AE37: -2 | AF37: 9 | AH37: 0 | AI37: 6.5 | AJ37: 6.5 | AK37: 7 | AL37: 5.5 | AM37: 0
A38: 2012-05-10 | C38: 20 | D38: 11 | G38: 14 | H38: 18 | K38: 14 | L38: 18 | O38: 13 | P38: 18 | R38: -1 | S38: 14 | T38: 17 | W38: 20 | X38: 11 | AA38: =C38-D38 -> 9 | AB38: =G38-H38 -> -4 | AC38: =K38-L38 -> -4 | AD38: =O38-P38 -> -5 | AE38: =S38-T38 -> -3 | AF38: =W38-X38 -> 9 | AH38: =(MAX($AA38:$AF38)-AA38)/2 -> 0 | AI38: =(MAX($AA38:$AF38)-AB38)/2 -> 6.5 | AJ38: =(MAX($AA38:$AF38)-AC38)/2 -> 6.5 | AK38: =(MAX($AA38:$AF38)-AD38)/2 -> 7 | AL38: =(MAX($AA38:$AF38)-AE38)/2 -> 6 | AM38: =(MAX($AA38:$AF38)-AF38)/2 -> 0
A39: 2012-05-11 | B39: 1 | C39: =C38+IF(B39>0,B39,0) -> 21 | D39: =D38-IF(B39<0,B39,0) -> 11 | F39: 1 | G39: =G38+IF(F39>0,F39,0) -> 15 | H39: =H38-IF(F39<0,F39,0) -> 18 | J39: 1 | K39: =K38+IF(J39>0,J39,0) -> 15 | L39: =L38-IF(J39<0,J39,0) -> 18 | N39: 1 | O39: =O38+IF(N39>0,N39,0) -> 14 | P39: =P38-IF(N39<0,N39,0) -> 18 | R39: -1 | S39: 14 | T39: 18 | V39: -1 | W39: =W38+IF(V39>0,V39,0) -> 20 | X39: =X38-IF(V39<0,V39,0) -> 12 | AA39: 10 | AB39: -3 | AC39: -3 | AD39: -4 | AE39: -4 | AF39: 8 | AH39: 0 | AI39: 6.5 | AJ39: 6.5 | AK39: 7 | AL39: 7 | AM39: 1
A40: 2012-05-12 | B40: 1 | C40: 22 | D40: 11 | F40: -1 | G40: 15 | H40: 19 | J40: -1 | K40: 15 | L40: 19 | N40: 1 | O40: 15 | P40: 18 | R40: 1 | S40: 15 | T40: 18 | V40: -1 | W40: 20 | X40: 13 | AA40: 11 | AB40: -4 | AC40: -4 | AD40: -3 | AE40: -3 | AF40: 7 | AH40: 0 | AI40: 7.5 | AJ40: 7.5 | AK40: 7 | AL40: 7 | AM40: 2
A41: 2012-05-13 | B41: 1 | C41: 23 | D41: 11 | F41: 1 | G41: 16 | H41: 19 | J41: -1 | K41: 15 | L41: 20 | N41: -1 | O41: 15 | P41: 19 | R41: 1 | S41: 16 | T41: 18 | V41: -1 | W41: 20 | X41: 14 | AA41: 12 | AB41: -3 | AC41: -5 | AD41: -4 | AE41: -2 | AF41: 6 | AH41: 0 | AI41: 7.5 | AJ41: 8.5 | AK41: 8 | AL41: 7 | AM41: 3
A42: 2012-05-14 | B42: 1 | C42: 24 | D42: 11 | F42: 1 | G42: 17 | H42: 19 | J42: -1 | K42: 15 | L42: 21 | N42: -1 | O42: 15 | P42: 20 | R42: 1 | S42: 17 | T42: 18 | V42: -1 | W42: 20 | X42: 15 | AA42: 13 | AB42: -2 | AC42: -6 | AD42: -5 | AE42: -1 | AF42: 5 | AH42: 0 | AI42: 7.5 | AJ42: 9.5 | AK42: 9 | AL42: 7 | AM42: 4
A43: 2012-05-15 | B43: -1 | C43: 24 | D43: 12 | F43: 1 | G43: =G42+IF(F43>0,F43,0) -> 18 | H43: =H42-IF(F43<0,F43,0) -> 19 | J43: 1 | K43: 16 | L43: 21 | N43: 1 | O43: 16 | P43: 20 | R43: -1 | S43: 17 | T43: 19 | V43: 1 | W43: 21 | X43: 15 | AA43: 12 | AB43: -1 | AC43: -5 | AD43: -4 | AE43: -2 | AF43: 6 | AH43: 0 | AI43: 6.5 | AJ43: 8.5 | AK43: 8 | AL43: 7 | AM43: 3 | AP43: =AP182 -> STL | AQ43: 0 | AR43: 0.5432098765
A44: 2012-05-16 | B44: -1 | C44: 24 | D44: 13 | F44: 1 | G44: 19 | H44: 19 | J44: -1 | K44: 16 | L44: 22 | N44: -1 | O44: 16 | P44: 21 | R44: -1 | S44: 17 | T44: 20 | V44: 1 | W44: 22 | X44: 15 | AA44: 11 | AB44: 0 | AC44: -6 | AD44: -5 | AE44: -3 | AF44: 7 | AH44: 0 | AI44: 5.5 | AJ44: 8.5 | AK44: 8 | AL44: 7 | AM44: 2 | AP44: LAD | AQ44: 2 | AR44: 0.5308641975
A45: 2012-05-17 | B45: 1 | C45: =C44+IF(B45>0,B45,0) -> 25 | D45: =D44-IF(B45<0,B45,0) -> 13 | F45: 1 | G45: =G44+IF(F45>0,F45,0) -> 20 | H45: =H44-IF(F45<0,F45,0) -> 19 | J45: 1 | K45: =K44+IF(J45>0,J45,0) -> 17 | L45: =L44-IF(J45<0,J45,0) -> 22 | N45: -1 | O45: =O44+IF(N45>0,N45,0) -> 16 | P45: =P44-IF(N45<0,N45,0) -> 22 | R45: 1 | S45: =S44+IF(R45>0,R45,0) -> 18 | T45: =T44-IF(R45<0,R45,0) -> 20 | V45: -1 | W45: =W44+IF(V45>0,V45,0) -> 22 | X45: =X44-IF(V45<0,V45,0) -> 16 | AA45: 12 | AB45: 1 | AC45: -5 | AD45: -6 | AE45: -2 | AF45: 6 | AH45: 0 | AI45: 5.5 | AJ45: 8.5 | AK45: 9 | AL45: 7 | AM45: 3 | AP45: MIL | AQ45: 5 | AR45: 0.512345679
A46: 2012-05-18 | B46: 1 | C46: 26 | D46: 13 | F46: 1 | G46: 21 | H46: 19 | J46: 1 | K46: 18 | L46: 22 | N46: -1 | O46: 16 | P46: 23 | R46: -1 | S46: =S45+IF(R46>0,R46,0) -> 18 | T46: =T45-IF(R46<0,R46,0) -> 21 | V46: -1 | W46: 22 | X46: 17 | AA46: 13 | AB46: 2 | AC46: -4 | AD46: -7 | AE46: -3 | AF46: 5 | AH46: 0 | AI46: 5.5 | AJ46: 8.5 | AK46: 10 | AL46: 8 | AM46: 4 | AP46: ARZ | AQ46: 7 | AR46: 0.5
A47: 2012-05-19 | B47: 1 | C47: 27 | D47: 13 | F47: -1 | G47: 21 | H47: 20 | J47: -1 | K47: 18 | L47: 23 | N47: -1 | O47: 16 | P47: 24 | R47: 1 | S47: 19 | T47: 21 | V47: -1 | W47: 22 | X47: 18 | AA47: 14 | AB47: 1 | AC47: -5 | AD47: -8 | AE47: -2 | AF47: 4 | AH47: 0 | AI47: 6.5 | AJ47: 9.5 | AK47: 11 | AL47: 8 | AM47: 5 | AP47: PHI | AQ47: 7 | AR47: 0.5
A48: 2012-05-20 | B48: 1 | C48: 28 | D48: 13 | F48: -1 | G48: 21 | H48: 21 | J48: 1 | K48: 19 | L48: 23 | N48: 1 | O48: 17 | P48: 24 | R48: -1 | S48: 19 | T48: 22 | V48: -1 | W48: 22 | X48: 19 | AA48: 15 | AB48: 0 | AC48: -4 | AD48: -7 | AE48: -3 | AF48: 3 | AH48: 0 | AI48: 7.5 | AJ48: 9.5 | AK48: 11 | AL48: 9 | AM48: 6 | AP48: PIT | AQ48: 9 | AR48: 0.487654321
A49: 2012-05-21 | B49: 1 | C49: 29 | D49: 13 | F49: -1 | G49: 21 | H49: 22 | J49: -1 | K49: 19 | L49: 24 | N49: -1 | O49: 17 | P49: 25 | R49: 1 | S49: 20 | T49: 22 | V49: 1 | W49: 23 | X49: 19 | AA49: 16 | AB49: -1 | AC49: -5 | AD49: -8 | AE49: -2 | AF49: 4 | AH49: 0 | AI49: 8.5 | AJ49: 10.5 | AK49: 12 | AL49: 9 | AM49: 6
A50: 2012-05-22 | B50: 1 | C50: 30 | D50: 13 | F50: -1 | G50: 21 | H50: 23 | J50: -1 | K50: 19 | L50: 25 | N50: -1 | O50: 17 | P50: 26 | R50: -1 | S50: 20 | T50: 23 | V50: 1 | W50: 24 | X50: 19 | AA50: 17 | AB50: -2 | AC50: -6 | AD50: -9 | AE50: -3 | AF50: 5 | AH50: 0 | AI50: 9.5 | AJ50: 11.5 | AK50: 13 | AL50: 10 | AM50: 6
A51: 2012-05-23 | B51: -1 | C51: 30 | D51: 14 | F51: 1 | G51: 22 | H51: 23 | J51: 1 | K51: 20 | L51: 25 | N51: 1 | O51: 18 | P51: 26 | R51: -1 | S51: 20 | T51: 24 | V51: 1 | W51: 25 | X51: 19 | AA51: 16 | AB51: -1 | AC51: -5 | AD51: -8 | AE51: -4 | AF51: 6 | AH51: 0 | AI51: 8.5 | AJ51: 10.5 | AK51: 12 | AL51: 10 | AM51: 5
A52: 2012-05-24 | C52: 30 | D52: 14 | F52: 1 | G52: 23 | H52: 23 | K52: 20 | L52: 25 | O52: 18 | P52: 26 | S52: 20 | T52: 24 | V52: -1 | W52: 25 | X52: 20 | AA52: 16 | AB52: 0 | AC52: -5 | AD52: -8 | AE52: -4 | AF52: 5 | AH52: 0 | AI52: 8 | AJ52: 10.5 | AK52: 12 | AL52: 10 | AM52: 5.5
A53: 2012-05-25 | B53: -1 | C53: 30 | D53: 15 | F53: 1 | G53: 24 | H53: 23 | J53: -1 | K53: 20 | L53: 26 | N53: 1 | O53: 19 | P53: 26 | R53: 1 | S53: 21 | T53: 24 | V53: -1 | W53: 25 | X53: 21 | AA53: 15 | AB53: 1 | AC53: -6 | AD53: -7 | AE53: -3 | AF53: 4 | AH53: 0 | AI53: 7 | AJ53: 10.5 | AK53: 11 | AL53: 9 | AM53: 5.5
A54: 2012-05-26 | B54: 1 | C54: 31 | D54: 15 | F54: 1 | G54: 25 | H54: 23 | J54: 1 | K54: 21 | L54: 26 | N54: -1 | O54: 19 | P54: 27 | R54: 1 | S54: 22 | T54: 24 | V54: -1 | W54: 25 | X54: 22 | AA54: 16 | AB54: 2 | AC54: -5 | AD54: -8 | AE54: -2 | AF54: 3 | AH54: 0 | AI54: 7 | AJ54: 10.5 | AK54: 12 | AL54: 9 | AM54: 6.5
A55: 2012-05-27 | B55: 1 | C55: 32 | D55: 15 | F55: -1 | G55: 25 | H55: 24 | J55: 1 | K55: 22 | L55: 26 | N55: -1 | O55: 19 | P55: 28 | R55: 1 | S55: 23 | T55: 24 | V55: 1 | W55: 26 | X55: 22 | AA55: 17 | AB55: 1 | AC55: -4 | AD55: -9 | AE55: -1 | AF55: 4 | AH55: 0 | AI55: 8 | AJ55: 10.5 | AK55: 13 | AL55: 9 | AM55: 6.5
A56: 2012-05-28 | B56: -1 | C56: =C55+IF(B56>0,B56,0) -> 32 | D56: =D55-IF(B56<0,B56,0) -> 16 | F56: 1 | G56: 26 | H56: 24 | J56: -1 | K56: 22 | L56: 27 | N56: 1 | O56: 20 | P56: 28 | R56: 1 | S56: 24 | T56: 24 | V56: 1 | W56: 27 | X56: 22 | AA56: 16 | AB56: 2 | AC56: -5 | AD56: -8 | AE56: 0 | AF56: 5 | AH56: 0 | AI56: 7 | AJ56: 10.5 | AK56: 12 | AL56: 8 | AM56: 5.5
A57: 2012-05-29 | B57: -1 | C57: 32 | D57: 17 | F57: -1 | G57: 26 | H57: 25 | J57: -1 | K57: 22 | L57: 28 | N57: 1 | O57: 21 | P57: 28 | R57: -1 | S57: 24 | T57: 25 | V57: -1 | W57: 27 | X57: 23 | AA57: 15 | AB57: 1 | AC57: -6 | AD57: -7 | AE57: -1 | AF57: 4 | AH57: 0 | AI57: 7 | AJ57: 10.5 | AK57: 11 | AL57: 8 | AM57: 5.5
A58: 2012-05-30 | B58: -1 | C58: 32 | D58: 18 | F58: 1 | G58: 27 | H58: 25 | J58: 1 | K58: 23 | L58: 28 | N58: 1 | O58: 22 | P58: 28 | R58: 1 | S58: 25 | T58: 25 | V58: -1 | W58: 27 | X58: 24 | AA58: 14 | AB58: 2 | AC58: -5 | AD58: -6 | AE58: 0 | AF58: 3 | AH58: 0 | AI58: 6 | AJ58: 9.5 | AK58: 10 | AL58: 7 | AM58: 5.5
A59: 2012-05-31 | B59: -1 | C59: 32 | D59: 19 | G59: 27 | H59: 25 | K59: 23 | L59: 28 | N59: 1 | O59: 23 | P59: 28 | S59: 25 | T59: 25 | W59: 27 | X59: 24 | AA59: 13 | AB59: 2 | AC59: -5 | AD59: -5 | AE59: 0 | AF59: 3 | AH59: 0 | AI59: 5.5 | AJ59: 9 | AK59: 9 | AL59: 6.5 | AM59: 5
A60: 2012-06-01 | B60: -1 | C60: 32 | D60: 20 | F60: 1 | G60: 28 | H60: 25 | J60: -1 | K60: 23 | L60: 29 | N60: -1 | O60: 23 | P60: 29 | R60: 1 | S60: 26 | T60: 25 | V60: -1 | W60: 27 | X60: 25 | AA60: 12 | AB60: 3 | AC60: -6 | AD60: -6 | AE60: 1 | AF60: 2 | AH60: 0 | AI60: 4.5 | AJ60: 9 | AK60: 9 | AL60: 5.5 | AM60: 5
A61: 2012-06-02 | B61: 1 | C61: 33 | D61: 20 | F61: -1 | G61: 28 | H61: 26 | J61: 1 | K61: 24 | L61: 29 | N61: 1 | O61: 24 | P61: 29 | R61: -1 | S61: 26 | T61: 26 | V61: -1 | W61: 27 | X61: 26 | AA61: 13 | AB61: 2 | AC61: -5 | AD61: -5 | AE61: 0 | AF61: 1 | AH61: 0 | AI61: 5.5 | AJ61: 9 | AK61: 9 | AL61: 6.5 | AM61: 6
A62: 2012-06-03 | B62: -1 | C62: 33 | D62: 21 | F62: -1 | G62: 28 | H62: 27 | J62: 1 | K62: 25 | L62: 29 | N62: -1 | O62: 24 | P62: 30 | R62: 1 | S62: 27 | T62: 26 | V62: -1 | W62: 27 | X62: 27 | AA62: 12 | AB62: 1 | AC62: -4 | AD62: -6 | AE62: 1 | AF62: 0 | AH62: 0 | AI62: 5.5 | AJ62: 8 | AK62: 9 | AL62: 5.5 | AM62: 6
A63: 2012-06-04 | B63: 1 | C63: 34 | D63: 21 | F63: -1 | G63: 28 | H63: 28 | J63: -1 | K63: 25 | L63: 30 | O63: 24 | P63: 30 | S63: 27 | T63: 26 | V63: 1 | W63: 28 | X63: 27 | AA63: 13 | AB63: 0 | AC63: -5 | AD63: -6 | AE63: 1 | AF63: 1 | AH63: 0 | AI63: 6.5 | AJ63: 9 | AK63: 9.5 | AL63: 6 | AM63: 6
A64: 2012-06-05 | B64: 1 | C64: 35 | D64: 21 | F64: -1 | G64: 28 | H64: 29 | J64: 1 | K64: 26 | L64: 30 | N64: -1 | O64: 24 | P64: 31 | R64: 1 | S64: 28 | T64: 26 | V64: -1 | W64: 28 | X64: 28 | AA64: 14 | AB64: -1 | AC64: -4 | AD64: -7 | AE64: 2 | AF64: 0 | AH64: 0 | AI64: 7.5 | AJ64: 9 | AK64: 10.5 | AL64: 6 | AM64: 7
A65: 2012-06-06 | B65: 1 | C65: 36 | D65: 21 | F65: -1 | G65: 28 | H65: 30 | J65: 1 | K65: 27 | L65: 30 | N65: 1 | O65: 25 | P65: 31 | R65: -1 | S65: 28 | T65: 27 | V65: 1 | W65: 29 | X65: 28 | AA65: 15 | AB65: -2 | AC65: -3 | AD65: -6 | AE65: 1 | AF65: 1 | AH65: 0 | AI65: 8.5 | AJ65: 9 | AK65: 10.5 | AL65: 7 | AM65: 7
A66: 2012-06-07 | B66: 1 | C66: 37 | D66: 21 | F66: -1 | G66: 28 | H66: 31 | K66: 27 | L66: 30 | N66: 1 | O66: 26 | P66: 31 | R66: 1 | S66: 29 | T66: 27 | V66: 1 | W66: 30 | X66: 28 | AA66: 16 | AB66: -3 | AC66: -3 | AD66: -5 | AE66: 2 | AF66: 2 | AH66: 0 | AI66: 9.5 | AJ66: 9.5 | AK66: 10.5 | AL66: 7 | AM66: 7
A67: 2012-06-08 | B67: -1 | C67: 37 | D67: 22 | F67: 1 | G67: 29 | H67: 31 | J67: 1 | K67: 28 | L67: 30 | N67: 1 | O67: 27 | P67: 31 | R67: 1 | S67: 30 | T67: 27 | V67: -1 | W67: 30 | X67: 29 | AA67: 15 | AB67: -2 | AC67: -2 | AD67: -4 | AE67: 3 | AF67: 1 | AH67: 0 | AI67: 8.5 | AJ67: 8.5 | AK67: 9.5 | AL67: 6 | AM67: 7
A68: 2012-06-09 | B68: 1 | C68: 38 | D68: 22 | F68: -1 | G68: 29 | H68: 32 | J68: 1 | K68: 29 | L68: 30 | N68: -1 | O68: 27 | P68: 32 | R68: 1 | S68: 31 | T68: 27 | V68: 1 | W68: 31 | X68: 29 | AA68: 16 | AB68: -3 | AC68: -1 | AD68: -5 | AE68: 4 | AF68: 2 | AH68: 0 | AI68: 9.5 | AJ68: 8.5 | AK68: 10.5 | AL68: 6 | AM68: 7
A69: 2012-06-10 | B69: 1 | C69: 39 | D69: 22 | F69: -1 | G69: 29 | H69: 33 | J69: 1 | K69: 30 | L69: 30 | N69: 1 | O69: 28 | P69: 32 | R69: 1 | S69: 32 | T69: 27 | V69: -1 | W69: =W68+IF(V69>0,V69,0) -> 31 | X69: =X68-IF(V69<0,V69,0) -> 30 | AA69: 17 | AB69: -4 | AC69: 0 | AD69: -4 | AE69: 5 | AF69: 1 | AH69: 0 | AI69: 10.5 | AJ69: 8.5 | AK69: 10.5 | AL69: 6 | AM69: 8
A70: 2012-06-11 | B70: -1 | C70: =C69+IF(B70>0,B70,0) -> 39 | D70: =D69-IF(B70<0,B70,0) -> 23 | G70: =G69+IF(F70>0,F70,0) -> 29 | H70: =H69-IF(F70<0,F70,0) -> 33 | K70: 30 | L70: 30 | O70: 28 | P70: 32 | S70: 32 | T70: 27 | W70: 31 | X70: 30 | AA70: =C70-D70 -> 16 | AB70: =G70-H70 -> -4 | AC70: =K70-L70 -> 0 | AD70: =O70-P70 -> -4 | AE70: =S70-T70 -> 5 | AF70: =W70-X70 -> 1 | AH70: =(MAX($AA70:$AF70)-AA70)/2 -> 0 | AI70: =(MAX($AA70:$AF70)-AB70)/2 -> 10 | AJ70: =(MAX($AA70:$AF70)-AC70)/2 -> 8 | AK70: =(MAX($AA70:$AF70)-AD70)/2 -> 10 | AL70: =(MAX($AA70:$AF70)-AE70)/2 -> 5.5 | AM70: =(MAX($AA70:$AF70)-AF70)/2 -> 7.5
A71: 2012-06-12 | B71: 1 | C71: =C70+IF(B71>0,B71,0) -> 40 | D71: =D70-IF(B71<0,B71,0) -> 23 | F71: -1 | G71: =G70+IF(F71>0,F71,0) -> 29 | H71: =H70-IF(F71<0,F71,0) -> 34 | J71: -1 | K71: =K70+IF(J71>0,J71,0) -> 30 | L71: =L70-IF(J71<0,J71,0) -> 31 | N71: -1 | O71: =O70+IF(N71>0,N71,0) -> 28 | P71: =P70-IF(N71<0,N71,0) -> 33 | R71: -1 | S71: 32 | T71: 28 | V71: -1 | W71: =W70+IF(V71>0,V71,0) -> 31 | X71: =X70-IF(V71<0,V71,0) -> 31 | AA71: 17 | AB71: -5 | AC71: -1 | AD71: -5 | AE71: 4 | AF71: 0 | AH71: 0 | AI71: 11 | AJ71: 9 | AK71: 11 | AL71: 6.5 | AM71: 8.5
A72: 2012-06-13 | B72: -1 | C72: =C71+IF(B72>0,B72,0) -> 40 | D72: =D71-IF(B72<0,B72,0) -> 24 | F72: 1 | G72: =G71+IF(F72>0,F72,0) -> 30 | H72: =H71-IF(F72<0,F72,0) -> 34 | J72: -1 | K72: 30 | L72: 32 | N72: -1 | O72: 28 | P72: 34 | R72: -1 | S72: 32 | T72: 29 | V72: 1 | W72: 32 | X72: 31 | AA72: 16 | AB72: -4 | AC72: -2 | AD72: -6 | AE72: 3 | AF72: 1 | AH72: 0 | AI72: 10 | AJ72: 9 | AK72: 11 | AL72: 6.5 | AM72: 7.5
A73: 2012-06-14 | C73: =C72+IF(B73>0,B73,0) -> 40 | D73: =D72-IF(B73<0,B73,0) -> 24 | F73: 1 | G73: =G72+IF(F73>0,F73,0) -> 31 | H73: =H72-IF(F73<0,F73,0) -> 34 | J73: 1 | K73: 31 | L73: 32 | N73: -1 | O73: 28 | P73: 35 | R73: -1 | S73: 32 | T73: 30 | V73: 1 | W73: 33 | X73: 31 | AA73: 16 | AB73: -3 | AC73: -1 | AD73: -7 | AE73: 2 | AF73: 2 | AH73: 0 | AI73: 9.5 | AJ73: 8.5 | AK73: 11.5 | AL73: 7 | AM73: 7
A74: 2012-06-15 | B74: 1 | C74: 41 | D74: 24 | F74: -1 | G74: 31 | H74: 35 | J74: 1 | K74: 32 | L74: 32 | N74: 1 | O74: 29 | P74: 35 | R74: -1 | S74: 32 | T74: 31 | V74: -1 | W74: 33 | X74: 32 | AA74: 17 | AB74: -4 | AC74: 0 | AD74: -6 | AE74: 1 | AF74: 1 | AH74: 0 | AI74: 10.5 | AJ74: 8.5 | AK74: 11.5 | AL74: 8 | AM74: 8
A75: 2012-06-16 | B75: -1 | C75: 41 | D75: 25 | F75: -1 | G75: 31 | H75: 36 | J75: -1 | K75: 32 | L75: 33 | N75: 1 | O75: 30 | P75: 35 | R75: 1 | S75: 33 | T75: 31 | V75: 1 | W75: 34 | X75: 32 | AA75: 16 | AB75: -5 | AC75: -1 | AD75: -5 | AE75: 2 | AF75: 2 | AH75: 0 | AI75: 10.5 | AJ75: 8.5 | AK75: 10.5 | AL75: 7 | AM75: 7
A76: 2012-06-17 | B76: 1 | C76: 42 | D76: 25 | F76: -1 | G76: 31 | H76: 37 | J76: -1 | K76: 32 | L76: 34 | N76: -1 | O76: 30 | P76: 36 | R76: 1 | S76: 34 | T76: 31 | V76: -1 | W76: 34 | X76: 33 | AA76: 17 | AB76: -6 | AC76: -2 | AD76: -6 | AE76: 3 | AF76: 1 | AH76: 0 | AI76: 11.5 | AJ76: 9.5 | AK76: 11.5 | AL76: 7 | AM76: 8
A77: 2012-06-18 | C77: 42 | D77: 25 | G77: 31 | H77: 37 | J77: 1 | K77: 33 | L77: 34 | N77: 1 | O77: 31 | P77: 36 | S77: 34 | T77: 31 | W77: 34 | X77: 33 | AA77: 17 | AB77: -6 | AC77: -1 | AD77: -5 | AE77: 3 | AF77: 1 | AH77: 0 | AI77: 11.5 | AJ77: 9 | AK77: 11 | AL77: 7 | AM77: 8
A78: 2012-06-19 | B78: -1 | C78: 42 | D78: 26 | F78: 1 | G78: 32 | H78: 37 | J78: -1 | K78: 33 | L78: 35 | N78: -1 | O78: 31 | P78: 37 | R78: 1 | S78: =S77+IF(R78>0,R78,0) -> 35 | T78: =T77-IF(R78<0,R78,0) -> 31 | V78: -1 | W78: 34 | X78: 34 | AA78: 16 | AB78: -5 | AC78: -2 | AD78: -6 | AE78: 4 | AF78: 0 | AH78: 0 | AI78: 10.5 | AJ78: 9 | AK78: 11 | AL78: 6 | AM78: 8
A79: 2012-06-20 | B79: -1 | C79: 42 | D79: 27 | F79: 1 | G79: 33 | H79: 37 | J79: 1 | K79: 34 | L79: 35 | N79: 1 | O79: 32 | P79: 37 | R79: -1 | S79: 35 | T79: 32 | V79: 1 | W79: 35 | X79: 34 | AA79: 15 | AB79: -4 | AC79: -1 | AD79: -5 | AE79: 3 | AF79: 1 | AH79: 0 | AI79: 9.5 | AJ79: 8 | AK79: 10 | AL79: 6 | AM79: 7
A80: 2012-06-21 | B80: -1 | C80: 42 | D80: 28 | F80: -1 | G80: 33 | H80: 38 | K80: 34 | L80: 35 | O80: 32 | P80: 37 | R80: 1 | S80: 36 | T80: 32 | V80: -1 | W80: 35 | X80: 35 | AA80: 14 | AB80: -5 | AC80: -1 | AD80: -5 | AE80: 4 | AF80: 0 | AH80: 0 | AI80: 9.5 | AJ80: 7.5 | AK80: 9.5 | AL80: 5 | AM80: 7
A81: 2012-06-22 | B81: -1 | C81: 42 | D81: 29 | G81: 33 | H81: 38 | J81: 1 | K81: 35 | L81: 35 | N81: 1 | O81: 33 | P81: 37 | R81: 1 | S81: 37 | T81: 32 | V81: 1 | W81: 36 | X81: 35 | AA81: 13 | AB81: -5 | AC81: 0 | AD81: -4 | AE81: 5 | AF81: 1 | AH81: 0 | AI81: 9 | AJ81: 6.5 | AK81: 8.5 | AL81: 4 | AM81: 6
A82: 2012-06-23 | B82: 1 | C82: 43 | D82: 29 | F82: 1 | G82: 34 | H82: 38 | J82: 1 | K82: 36 | L82: 35 | N82: -1 | O82: 33 | P82: 38 | R82: 1 | S82: 38 | T82: 32 | V82: 1 | W82: 37 | X82: 35 | AA82: 14 | AB82: -4 | AC82: 1 | AD82: -5 | AE82: 6 | AF82: 2 | AH82: 0 | AI82: 9 | AJ82: 6.5 | AK82: 9.5 | AL82: 4 | AM82: 6
A83: 2012-06-24 | B83: -1 | C83: 43 | D83: 30 | F83: -2 | G83: 34 | H83: 40 | J83: 1 | K83: 37 | L83: 35 | N83: -1 | O83: 33 | P83: 39 | R83: -1 | S83: 38 | T83: 33 | V83: 1 | W83: 38 | X83: 35 | AA83: 13 | AB83: -6 | AC83: 2 | AD83: -6 | AE83: 5 | AF83: 3 | AH83: 0 | AI83: 9.5 | AJ83: 5.5 | AK83: 9.5 | AL83: 4 | AM83: 5
A84: 2012-06-25 | B84: -1 | C84: 43 | D84: 31 | F84: 1 | G84: 35 | H84: 40 | K84: 37 | L84: 35 | N84: -1 | O84: 33 | P84: 40 | R84: -1 | S84: 38 | T84: 34 | V84: 1 | W84: 39 | X84: 35 | AA84: 12 | AB84: -5 | AC84: 2 | AD84: -7 | AE84: 4 | AF84: 4 | AH84: 0 | AI84: 8.5 | AJ84: 5 | AK84: 9.5 | AL84: 4 | AM84: 4
A85: 2012-06-26 | B85: -1 | C85: 43 | D85: 32 | F85: 1 | G85: 36 | H85: 40 | J85: -1 | K85: 37 | L85: 36 | N85: -1 | O85: 33 | P85: 41 | R85: -1 | S85: 38 | T85: 35 | V85: 1 | W85: 40 | X85: 35 | AA85: 11 | AB85: -4 | AC85: 1 | AD85: -8 | AE85: 3 | AF85: 5 | AH85: 0 | AI85: 7.5 | AJ85: 5 | AK85: 9.5 | AL85: 4 | AM85: 3
A86: 2012-06-27 | B86: -1 | C86: 43 | D86: 33 | F86: -1 | G86: =G85+IF(F86>0,F86,0) -> 36 | H86: =H85-IF(F86<0,F86,0) -> 41 | J86: -1 | K86: 37 | L86: 37 | N86: 1 | O86: 34 | P86: 41 | R86: 1 | S86: 39 | T86: 35 | V86: -1 | W86: 40 | X86: 36 | AA86: 10 | AB86: -5 | AC86: 0 | AD86: -7 | AE86: 4 | AF86: 4 | AH86: 0 | AI86: 7.5 | AJ86: 5 | AK86: 8.5 | AL86: 3 | AM86: 3
A87: 2012-06-28 | B87: -1 | C87: 43 | D87: 34 | F87: -1 | G87: 36 | H87: 42 | J87: 1 | K87: 38 | L87: 37 | O87: 34 | P87: 41 | R87: 1 | S87: 40 | T87: 35 | W87: 40 | X87: 36 | AA87: 9 | AB87: -6 | AC87: 1 | AD87: -7 | AE87: 5 | AF87: 4 | AH87: 0 | AI87: 7.5 | AJ87: 4 | AK87: 8 | AL87: 2 | AM87: 2.5
A88: 2012-06-29 | B88: -1 | C88: 43 | D88: 35 | F88: -1 | G88: 36 | H88: 43 | J88: 1 | K88: 39 | L88: 37 | N88: -1 | O88: 34 | P88: 42 | R88: 1 | S88: =S87+IF(R88>0,R88,0) -> 41 | T88: =T87-IF(R88<0,R88,0) -> 35 | V88: -1 | W88: =W87+IF(V88>0,V88,0) -> 40 | X88: =X87-IF(V88<0,V88,0) -> 37 | AA88: 8 | AB88: -7 | AC88: 2 | AD88: -8 | AE88: 6 | AF88: 3 | AH88: 0 | AI88: 7.5 | AJ88: 3 | AK88: 8 | AL88: 1 | AM88: 2.5
A89: 2012-06-30 | B89: -1 | C89: 43 | D89: 36 | F89: -1 | G89: 36 | H89: 44 | J89: -1 | K89: 39 | L89: 38 | N89: 1 | O89: 35 | P89: 42 | R89: 1 | S89: 42 | T89: 35 | V89: -1 | W89: 40 | X89: 38 | AA89: 7 | AB89: -8 | AC89: 1 | AD89: -7 | AE89: 7 | AF89: 2 | AH89: 0 | AI89: 7.5 | AJ89: 3 | AK89: 7 | AL89: 0 | AM89: 2.5
A90: 2012-07-01 | B90: 1 | C90: 44 | D90: 36 | F90: -1 | G90: 36 | H90: 45 | J90: -1 | K90: 39 | L90: 39 | N90: 1 | O90: 36 | P90: 42 | R90: -1 | S90: 42 | T90: 36 | V90: 1 | W90: 41 | X90: 38 | AA90: 8 | AB90: -9 | AC90: 0 | AD90: -6 | AE90: 6 | AF90: 3 | AH90: 0 | AI90: 8.5 | AJ90: 4 | AK90: 7 | AL90: 1 | AM90: 2.5
A91: 2012-07-02 | B91: -1 | C91: 44 | D91: 37 | G91: 36 | H91: 45 | J91: -1 | K91: 39 | L91: 40 | N91: 1 | O91: 37 | P91: 42 | R91: 1 | S91: 43 | T91: 36 | V91: 1 | W91: 42 | X91: 38 | AA91: 7 | AB91: -9 | AC91: -1 | AD91: -5 | AE91: 7 | AF91: 4 | AH91: 0 | AI91: 8 | AJ91: 4 | AK91: 6 | AL91: 0 | AM91: 1.5
A92: 2012-07-03 | B92: 1 | C92: 45 | D92: 37 | F92: -1 | G92: 36 | H92: 46 | J92: -1 | K92: 39 | L92: 41 | N92: 1 | O92: 38 | P92: 42 | R92: 1 | S92: 44 | T92: 36 | V92: -1 | W92: 42 | X92: 39 | AA92: 8 | AB92: -10 | AC92: -2 | AD92: -4 | AE92: 8 | AF92: 3 | AH92: 0 | AI92: 9 | AJ92: 5 | AK92: 6 | AL92: 0 | AM92: 2.5
A93: 2012-07-04 | B93: 1 | C93: 46 | D93: 37 | F93: 1 | G93: 37 | H93: 46 | J93: -1 | K93: 39 | L93: 42 | N93: -1 | O93: 38 | P93: 43 | R93: 1 | S93: 45 | T93: 36 | V93: 1 | W93: 43 | X93: 39 | AA93: 9 | AB93: -9 | AC93: -3 | AD93: -5 | AE93: 9 | AF93: 4 | AH93: 0 | AI93: 9 | AJ93: 6 | AK93: 7 | AL93: 0 | AM93: 2.5
A94: 2012-07-05 | B94: 1 | C94: 47 | D94: 37 | F94: -1 | G94: 37 | H94: 47 | J94: -1 | K94: 39 | L94: 43 | N94: -1 | O94: 38 | P94: 44 | R94: 1 | S94: 46 | T94: 36 | V94: 1 | W94: 44 | X94: 39 | AA94: 10 | AB94: -10 | AC94: -4 | AD94: -6 | AE94: 10 | AF94: 5 | AH94: 0 | AI94: 10 | AJ94: 7 | AK94: 8 | AL94: 0 | AM94: 2.5
A95: 2012-07-06 | B95: -1 | C95: 47 | D95: 38 | F95: -1 | G95: 37 | H95: 48 | J95: 1 | K95: 40 | L95: 43 | N95: 1 | O95: 39 | P95: 44 | R95: -1 | S95: 46 | T95: 37 | V95: -1 | W95: 44 | X95: 40 | AA95: 9 | AB95: -11 | AC95: -3 | AD95: -5 | AE95: 9 | AF95: 4 | AH95: 0 | AI95: 10 | AJ95: 6 | AK95: 7 | AL95: 0 | AM95: 2.5
A96: 2012-07-07 | B96: -1 | C96: 47 | D96: 39 | F96: -1 | G96: 37 | H96: 49 | J96: 1 | K96: 41 | L96: 43 | N96: -1 | O96: 39 | P96: 45 | R96: 1 | S96: 47 | T96: 37 | V96: 1 | W96: 45 | X96: 40 | AA96: 8 | AB96: -12 | AC96: -2 | AD96: -6 | AE96: 10 | AF96: 5 | AH96: 1 | AI96: 11 | AJ96: 6 | AK96: 8 | AL96: 0 | AM96: 2.5
A97: 2012-07-08 | B97: -1 | C97: 47 | D97: 40 | F97: -1 | G97: 37 | H97: 50 | J97: 1 | K97: 42 | L97: 43 | N97: 1 | O97: 40 | P97: 45 | R97: 1 | S97: 48 | T97: 37 | V97: 1 | W97: 46 | X97: 40 | AA97: 7 | AB97: -13 | AC97: -1 | AD97: -5 | AE97: 11 | AF97: 6 | AH97: 2 | AI97: 12 | AJ97: 6 | AK97: 8 | AL97: 0 | AM97: 2.5
A98: 2012-07-09 | C98: 47 | D98: 40 | G98: 37 | H98: 50 | K98: 42 | L98: 43 | O98: 40 | P98: 45 | S98: 48 | T98: 37 | W98: 46 | X98: 40 | AA98: 7 | AB98: -13 | AC98: -1 | AD98: -5 | AE98: 11 | AF98: 6 | AH98: 2 | AI98: 12 | AJ98: 6 | AK98: 8 | AL98: 0 | AM98: 2.5
A99: 2012-07-10 | C99: 47 | D99: 40 | G99: 37 | H99: 50 | K99: 42 | L99: 43 | O99: 40 | P99: 45 | S99: 48 | T99: 37 | W99: 46 | X99: 40 | AA99: 7 | AB99: -13 | AC99: -1 | AD99: -5 | AE99: 11 | AF99: 6 | AH99: 2 | AI99: 12 | AJ99: 6 | AK99: 8 | AL99: 0 | AM99: 2.5
A100: 2012-07-11 | C100: =C99+IF(B100>0,B100,0) -> 47 | D100: =D99-IF(B100<0,B100,0) -> 40 | G100: 37 | H100: 50 | K100: 42 | L100: 43 | O100: 40 | P100: 45 | S100: 48 | T100: 37 | W100: =W99+IF(V100>0,V100,0) -> 46 | X100: =X99-IF(V100<0,V100,0) -> 40 | AA100: 7 | AB100: -13 | AC100: -1 | AD100: -5 | AE100: 11 | AF100: 6 | AH100: 2 | AI100: 12 | AJ100: 6 | AK100: 8 | AL100: 0 | AM100: 2.5
A101: 2012-07-12 | C101: 47 | D101: 40 | G101: 37 | H101: 50 | K101: 42 | L101: 43 | O101: 40 | P101: 45 | S101: 48 | T101: 37 | W101: 46 | X101: 40 | AA101: 7 | AB101: -13 | AC101: -1 | AD101: -5 | AE101: 11 | AF101: 6 | AH101: 2 | AI101: 12 | AJ101: 6 | AK101: 8 | AL101: 0 | AM101: 2.5
A102: 2012-07-13 | B102: 1 | C102: 48 | D102: 40 | F102: -1 | G102: 37 | H102: 51 | J102: -1 | K102: 42 | L102: 44 | N102: 1 | O102: 41 | P102: 45 | R102: -1 | S102: 48 | T102: 38 | V102: -1 | W102: 46 | X102: 41 | AA102: =C102-D102 -> 8 | AB102: =G102-H102 -> -14 | AC102: =K102-L102 -> -2 | AD102: =O102-P102 -> -4 | AE102: =S102-T102 -> 10 | AF102: =W102-X102 -> 5 | AH102: =(MAX($AA102:$AF102)-AA102)/2 -> 1 | AI102: =(MAX($AA102:$AF102)-AB102)/2 -> 12 | AJ102: =(MAX($AA102:$AF102)-AC102)/2 -> 6 | AK102: =(MAX($AA102:$AF102)-AD102)/2 -> 7 | AL102: =(MAX($AA102:$AF102)-AE102)/2 -> 0 | AM102: =(MAX($AA102:$AF102)-AF102)/2 -> 2.5
A103: 2012-07-14 | B103: -1 | C103: =C102+IF(B103>0,B103,0) -> 48 | D103: =D102-IF(B103<0,B103,0) -> 41 | F103: 1 | G103: =G102+IF(F103>0,F103,0) -> 38 | H103: =H102-IF(F103<0,F103,0) -> 51 | J103: -1 | K103: =K102+IF(J103>0,J103,0) -> 42 | L103: =L102-IF(J103<0,J103,0) -> 45 | N103: -1 | O103: =O102+IF(N103>0,N103,0) -> 41 | P103: =P102-IF(N103<0,N103,0) -> 46 | R103: 1 | S103: 49 | T103: 38 | V103: -1 | W103: =W102+IF(V103>0,V103,0) -> 46 | X103: =X102-IF(V103<0,V103,0) -> 42 | AA103: 7 | AB103: -13 | AC103: -3 | AD103: -5 | AE103: 11 | AF103: 4 | AH103: 2 | AI103: 12 | AJ103: 7 | AK103: 8 | AL103: 0 | AM103: 3.5
A104: 2012-07-15 | B104: -1 | C104: 48 | D104: 42 | F104: 1 | G104: 39 | H104: 51 | J104: -1 | K104: 42 | L104: 46 | N104: 1 | O104: 42 | P104: 46 | R104: -1 | S104: 49 | T104: 39 | V104: -1 | W104: 46 | X104: 43 | AA104: 6 | AB104: -12 | AC104: -4 | AD104: -4 | AE104: 10 | AF104: 3 | AH104: 2 | AI104: 11 | AJ104: 7 | AK104: 7 | AL104: 0 | AM104: 3.5
A105: 2012-07-16 | B105: -1 | C105: 48 | D105: 43 | F105: 1 | G105: 40 | H105: 51 | J105: 1 | K105: 43 | L105: 46 | N105: -1 | O105: 42 | P105: 47 | R105: -1 | S105: 49 | T105: 40 | V105: 1 | W105: 47 | X105: 43 | AA105: 5 | AB105: -11 | AC105: -3 | AD105: -5 | AE105: 9 | AF105: 4 | AH105: 2 | AI105: 10 | AJ105: 6 | AK105: 7 | AL105: 0 | AM105: 2.5
A106: 2012-07-17 | B106: -1 | C106: 48 | D106: 44 | F106: 1 | G106: 41 | H106: 51 | J106: -1 | K106: 43 | L106: 47 | N106: 1 | O106: 43 | P106: 47 | R106: 1 | S106: 50 | T106: 40 | V106: -1 | W106: 47 | X106: 44 | AA106: 4 | AB106: -10 | AC106: -4 | AD106: -4 | AE106: 10 | AF106: 3 | AH106: 3 | AI106: 10 | AJ106: 7 | AK106: 7 | AL106: 0 | AM106: 3.5
A107: 2012-07-18 | B107: 1 | C107: 49 | D107: 44 | F107: -1 | G107: 41 | H107: 52 | J107: 1 | K107: 44 | L107: 47 | N107: 1 | O107: 44 | P107: 47 | R107: 1 | S107: 51 | T107: 40 | V107: -1 | W107: 47 | X107: 45 | AA107: 5 | AB107: -11 | AC107: -3 | AD107: -3 | AE107: 11 | AF107: 2 | AH107: 3 | AI107: 11 | AJ107: 7 | AK107: 7 | AL107: 0 | AM107: 4.5
A108: 2012-07-19 | C108: 49 | D108: 44 | G108: 41 | H108: 52 | J108: -1 | K108: 44 | L108: 48 | O108: 44 | P108: 47 | S108: 51 | T108: 40 | W108: 47 | X108: 45 | AA108: 5 | AB108: -11 | AC108: -4 | AD108: -3 | AE108: 11 | AF108: 2 | AH108: 3 | AI108: 11 | AJ108: 7.5 | AK108: 7 | AL108: 0 | AM108: 4.5
A109: 2012-07-20 | B109: 1 | C109: 50 | D109: 44 | F109: -1 | G109: 41 | H109: 53 | J109: 1 | K109: 45 | L109: 48 | N109: -1 | O109: 44 | P109: 48 | R109: 1 | S109: 52 | T109: 40 | V109: 1 | W109: 48 | X109: 45 | AA109: 6 | AB109: -12 | AC109: -3 | AD109: -4 | AE109: 12 | AF109: 3 | AH109: 3 | AI109: 12 | AJ109: 7.5 | AK109: 8 | AL109: 0 | AM109: 4.5
A110: 2012-07-21 | B110: 1 | C110: 51 | D110: 44 | F110: -1 | G110: 41 | H110: 54 | J110: 1 | K110: 46 | L110: 48 | N110: -1 | O110: 44 | P110: 49 | R110: 1 | S110: =S109+IF(R110>0,R110,0) -> 53 | T110: =T109-IF(R110<0,R110,0) -> 40 | V110: 1 | W110: 49 | X110: 45 | AA110: 7 | AB110: -13 | AC110: -2 | AD110: -5 | AE110: 13 | AF110: 4 | AH110: 3 | AI110: 13 | AJ110: 7.5 | AK110: 9 | AL110: 0 | AM110: 4.5
A111: 2012-07-22 | B111: 1 | C111: 52 | D111: 44 | F111: 1 | G111: 42 | H111: 54 | J111: 1 | K111: 47 | L111: 48 | N111: -1 | O111: 44 | P111: 50 | R111: 1 | S111: 54 | T111: 40 | V111: 1 | W111: 50 | X111: 45 | AA111: 8 | AB111: -12 | AC111: -1 | AD111: -6 | AE111: 14 | AF111: 5 | AH111: 3 | AI111: 13 | AJ111: 7.5 | AK111: 10 | AL111: 0 | AM111: 4.5
A112: 2012-07-23 | B112: 1 | C112: 53 | D112: 44 | F112: 1 | G112: 43 | H112: 54 | J112: 1 | K112: 48 | L112: 48 | N112: -1 | O112: 44 | P112: 51 | R112: -1 | S112: 54 | T112: 41 | V112: -1 | W112: 50 | X112: 46 | AA112: 9 | AB112: -11 | AC112: 0 | AD112: -7 | AE112: 13 | AF112: 4 | AH112: 2 | AI112: 12 | AJ112: 6.5 | AK112: 10 | AL112: 0 | AM112: 4.5
A113: 2012-07-24 | B113: -1 | C113: 53 | D113: 45 | F113: 1 | G113: 44 | H113: 54 | J113: 1 | K113: 49 | L113: 48 | N113: -1 | O113: 44 | P113: 52 | R113: -1 | S113: 54 | T113: 42 | V113: 1 | W113: 51 | X113: 46 | AA113: 8 | AB113: -10 | AC113: 1 | AD113: -8 | AE113: 12 | AF113: 5 | AH113: 2 | AI113: 11 | AJ113: 5.5 | AK113: 10 | AL113: 0 | AM113: 3.5
A114: 2012-07-25 | B114: -1 | C114: 53 | D114: 46 | F114: 1 | G114: 45 | H114: 54 | J114: -1 | K114: 49 | L114: 49 | N114: -1 | O114: 44 | P114: 53 | R114: 1 | S114: 55 | T114: 42 | V114: 1 | W114: 52 | X114: 46 | AA114: 7 | AB114: -9 | AC114: 0 | AD114: -9 | AE114: 13 | AF114: 6 | AH114: 3 | AI114: 11 | AJ114: 6.5 | AK114: 11 | AL114: 0 | AM114: 3.5
A115: 2012-07-26 | B115: -1 | C115: 53 | D115: 47 | G115: 45 | H115: 54 | J115: -1 | K115: 49 | L115: 50 | N115: -1 | O115: 44 | P115: 54 | R115: 1 | S115: 56 | T115: 42 | V115: 1 | W115: 53 | X115: 46 | AA115: 6 | AB115: -9 | AC115: -1 | AD115: -10 | AE115: 14 | AF115: 7 | AH115: 4 | AI115: 11.5 | AJ115: 7.5 | AK115: 12 | AL115: 0 | AM115: 3.5
A116: 2012-07-27 | B116: 1 | C116: 54 | D116: 47 | F116: -1 | G116: 45 | H116: 55 | J116: 1 | K116: 50 | L116: 50 | N116: 1 | O116: 45 | P116: 54 | R116: 1 | S116: 57 | T116: 42 | V116: 1 | W116: 54 | X116: 46 | AA116: 7 | AB116: -10 | AC116: 0 | AD116: -9 | AE116: 15 | AF116: 8 | AH116: 4 | AI116: 12.5 | AJ116: 7.5 | AK116: 12 | AL116: 0 | AM116: 3.5
A117: 2012-07-28 | B117: 1 | C117: 55 | D117: 47 | F117: -1 | G117: 45 | H117: 56 | J117: 1 | K117: 51 | L117: 50 | N117: -1 | O117: 45 | P117: 55 | R117: 1 | S117: 58 | T117: 42 | V117: -1 | W117: 54 | X117: 47 | AA117: 8 | AB117: -11 | AC117: 1 | AD117: -10 | AE117: 16 | AF117: 7 | AH117: 4 | AI117: 13.5 | AJ117: 7.5 | AK117: 13 | AL117: 0 | AM117: 4.5
A118: 2012-07-29 | B118: 1 | C118: 56 | D118: 47 | F118: -1 | G118: 45 | H118: 57 | J118: -1 | K118: 51 | L118: 51 | N118: -1 | O118: 45 | P118: 56 | R118: -1 | S118: 58 | T118: 43 | V118: -1 | W118: 54 | X118: 48 | AA118: 9 | AB118: -12 | AC118: 0 | AD118: -11 | AE118: 15 | AF118: 6 | AH118: 3 | AI118: 13.5 | AJ118: 7.5 | AK118: 13 | AL118: 0 | AM118: 4.5
A119: 2012-07-30 | B119: -1 | C119: 56 | D119: 48 | G119: 45 | H119: 57 | J119: 1 | K119: 52 | L119: 51 | N119: 1 | O119: 46 | P119: 56 | R119: -1 | S119: 58 | T119: 44 | W119: 54 | X119: 48 | AA119: 8 | AB119: -12 | AC119: 1 | AD119: -10 | AE119: 14 | AF119: 6 | AH119: 3 | AI119: 13 | AJ119: 6.5 | AK119: 12 | AL119: 0 | AM119: 4
A120: 2012-07-31 | B120: -1 | C120: 56 | D120: 49 | F120: 1 | G120: 46 | H120: 57 | J120: 1 | K120: 53 | L120: 51 | N120: 1 | O120: 47 | P120: 56 | R120: 1 | S120: 59 | T120: 44 | V120: 1 | W120: 55 | X120: 48 | AA120: 7 | AB120: -11 | AC120: 2 | AD120: -9 | AE120: 15 | AF120: 7 | AH120: 4 | AI120: 13 | AJ120: 6.5 | AK120: 12 | AL120: 0 | AM120: 4
A121: 2012-08-01 | B121: -1 | C121: 56 | D121: 50 | F121: 1 | G121: 47 | H121: 57 | J121: 1 | K121: 54 | L121: 51 | N121: 1 | O121: 48 | P121: 56 | R121: 1 | S121: 60 | T121: 44 | V121: 1 | W121: 56 | X121: 48 | AA121: 6 | AB121: -10 | AC121: 3 | AD121: -8 | AE121: 16 | AF121: 8 | AH121: 5 | AI121: 13 | AJ121: 6.5 | AK121: 12 | AL121: 0 | AM121: 4
A122: 2012-08-02 | C122: 56 | D122: 50 | F122: -1 | G122: 47 | H122: 58 | K122: 54 | L122: 51 | O122: 48 | P122: 56 | S122: 60 | T122: 44 | V122: -1 | W122: 56 | X122: 49 | AA122: 6 | AB122: -11 | AC122: 3 | AD122: -8 | AE122: 16 | AF122: 7 | AH122: 5 | AI122: 13.5 | AJ122: 6.5 | AK122: 12 | AL122: 0 | AM122: 4.5
A123: 2012-08-03 | B123: 1 | C123: 57 | D123: 50 | F123: -1 | G123: 47 | H123: 59 | J123: 1 | K123: 55 | L123: 51 | N123: -1 | O123: 48 | P123: 57 | R123: -1 | S123: 60 | T123: 45 | V123: 1 | W123: 57 | X123: 49 | AA123: 7 | AB123: -12 | AC123: 4 | AD123: -9 | AE123: 15 | AF123: 8 | AH123: 4 | AI123: 13.5 | AJ123: 5.5 | AK123: 12 | AL123: 0 | AM123: 3.5
A124: 2012-08-04 | B124: 1 | C124: 58 | D124: 50 | F124: 1 | G124: 48 | H124: 59 | J124: -1 | K124: 55 | L124: 52 | N124: -1 | O124: 48 | P124: 58 | R124: -1 | S124: 60 | T124: 46 | V124: 1 | W124: 58 | X124: 49 | AA124: 8 | AB124: -11 | AC124: 3 | AD124: -10 | AE124: 14 | AF124: 9 | AH124: 3 | AI124: 12.5 | AJ124: 5.5 | AK124: 12 | AL124: 0 | AM124: 2.5
A125: 2012-08-05 | B125: 1 | C125: 59 | D125: 50 | F125: 1 | G125: 49 | H125: 59 | J125: -1 | K125: 55 | L125: 53 | N125: -1 | O125: 48 | P125: 59 | R125: 1 | S125: 61 | T125: 46 | V125: 1 | W125: 59 | X125: 49 | AA125: 9 | AB125: -10 | AC125: 2 | AD125: -11 | AE125: 15 | AF125: 10 | AH125: 3 | AI125: 12.5 | AJ125: 6.5 | AK125: 13 | AL125: 0 | AM125: 2.5
A126: 2012-08-06 | B126: -1 | C126: 59 | D126: 51 | F126: -1 | G126: 49 | H126: 60 | J126: -1 | K126: 55 | L126: 54 | N126: 1 | O126: 49 | P126: 59 | R126: 1 | S126: 62 | T126: 46 | V126: 1 | W126: 60 | X126: 49 | AA126: 8 | AB126: -11 | AC126: 1 | AD126: -10 | AE126: 16 | AF126: 11 | AH126: 4 | AI126: 13.5 | AJ126: 7.5 | AK126: 13 | AL126: 0 | AM126: 2.5
A127: 2012-08-07 | B127: -1 | C127: 59 | D127: 52 | F127: 1 | G127: 50 | H127: 60 | J127: 1 | K127: 56 | L127: 54 | N127: 1 | O127: 50 | P127: 59 | R127: -1 | S127: 62 | T127: 47 | V127: -1 | W127: 60 | X127: 50 | AA127: 7 | AB127: -10 | AC127: 2 | AD127: -9 | AE127: 15 | AF127: 10 | AH127: 4 | AI127: 12.5 | AJ127: 6.5 | AK127: 12 | AL127: 0 | AM127: 2.5
A128: 2012-08-08 | B128: 1 | C128: 60 | D128: 52 | F128: -1 | G128: 50 | H128: 61 | J128: -1 | K128: 56 | L128: 55 | N128: 1 | O128: 51 | P128: 59 | R128: 1 | S128: 63 | T128: 47 | V128: -1 | W128: 60 | X128: 51 | AA128: 8 | AB128: -11 | AC128: 1 | AD128: -8 | AE128: 16 | AF128: 9 | AH128: 4 | AI128: 13.5 | AJ128: 7.5 | AK128: 12 | AL128: 0 | AM128: 3.5
A129: 2012-08-09 | C129: 60 | D129: 52 | G129: 50 | H129: 61 | J129: 1 | K129: 57 | L129: 55 | O129: 51 | P129: 59 | R129: -1 | S129: 63 | T129: 48 | V129: 1 | W129: 61 | X129: 51 | AA129: 8 | AB129: -11 | AC129: 2 | AD129: -8 | AE129: 15 | AF129: 10 | AH129: 3.5 | AI129: 13 | AJ129: 6.5 | AK129: 11.5 | AL129: 0 | AM129: 2.5
A130: 2012-08-10 | B130: 1 | C130: 61 | D130: 52 | F130: 1 | G130: 51 | H130: 61 | J130: -1 | K130: 57 | L130: 56 | N130: -1 | O130: 51 | P130: 60 | R130: -1 | S130: 63 | T130: 49 | V130: -1 | W130: 61 | X130: 52 | AA130: 9 | AB130: -10 | AC130: 1 | AD130: -9 | AE130: 14 | AF130: 9 | AH130: 2.5 | AI130: 12 | AJ130: 6.5 | AK130: 11.5 | AL130: 0 | AM130: 2.5
A131: 2012-08-11 | B131: -1 | C131: 61 | D131: 53 | F131: -1 | G131: 51 | H131: 62 | J131: -1 | K131: 57 | L131: 57 | N131: -1 | O131: 51 | P131: 61 | R131: -1 | S131: 63 | T131: 50 | V131: 1 | W131: 62 | X131: 52 | AA131: 8 | AB131: -11 | AC131: 0 | AD131: -10 | AE131: 13 | AF131: 10 | AH131: 2.5 | AI131: 12 | AJ131: 6.5 | AK131: 11.5 | AL131: 0 | AM131: 1.5
A132: 2012-08-12 | B132: 1 | C132: 62 | D132: 53 | F132: 1 | G132: 52 | H132: 62 | J132: 1 | K132: 58 | L132: 57 | N132: 1 | O132: 52 | P132: 61 | R132: 1 | S132: 64 | T132: 50 | V132: -1 | W132: 62 | X132: 53 | AA132: 9 | AB132: -10 | AC132: 1 | AD132: -9 | AE132: 14 | AF132: 9 | AH132: 2.5 | AI132: 12 | AJ132: 6.5 | AK132: 11.5 | AL132: 0 | AM132: 2.5
A133: 2012-08-13 | B133: 1 | C133: 63 | D133: 53 | F133: 1 | G133: 53 | H133: 62 | K133: 58 | L133: 57 | N133: -1 | O133: 52 | P133: 62 | R133: -1 | S133: 64 | T133: 51 | W133: 62 | X133: 53 | AA133: 10 | AB133: -9 | AC133: 1 | AD133: -10 | AE133: 13 | AF133: 9 | AH133: 1.5 | AI133: 11 | AJ133: 6 | AK133: 11.5 | AL133: 0 | AM133: 2
A134: 2012-08-14 | B134: 1 | C134: 64 | D134: 53 | F134: 1 | G134: 54 | H134: 62 | J134: -1 | K134: 58 | L134: 58 | N134: -1 | O134: 52 | P134: 63 | R134: -1 | S134: 64 | T134: 52 | V134: 1 | W134: 63 | X134: 53 | AA134: =C134-D134 -> 11 | AB134: =G134-H134 -> -8 | AC134: =K134-L134 -> 0 | AD134: =O134-P134 -> -11 | AE134: =S134-T134 -> 12 | AF134: =W134-X134 -> 10 | AH134: =(MAX($AA134:$AF134)-AA134)/2 -> 0.5 | AI134: =(MAX($AA134:$AF134)-AB134)/2 -> 10 | AJ134: =(MAX($AA134:$AF134)-AC134)/2 -> 6 | AK134: =(MAX($AA134:$AF134)-AD134)/2 -> 11.5 | AL134: =(MAX($AA134:$AF134)-AE134)/2 -> 0 | AM134: =(MAX($AA134:$AF134)-AF134)/2 -> 1
A135: 2012-08-15 | B135: 1 | C135: =C134+IF(B135>0,B135,0) -> 65 | D135: =D134-IF(B135<0,B135,0) -> 53 | F135: -1 | G135: =G134+IF(F135>0,F135,0) -> 54 | H135: =H134-IF(F135<0,F135,0) -> 63 | J135: -1 | K135: =K134+IF(J135>0,J135,0) -> 58 | L135: =L134-IF(J135<0,J135,0) -> 59 | N135: -1 | O135: =O134+IF(N135>0,N135,0) -> 52 | P135: =P134-IF(N135<0,N135,0) -> 64 | R135: -1 | S135: 64 | T135: 53 | V135: 1 | W135: =W134+IF(V135>0,V135,0) -> 64 | X135: =X134-IF(V135<0,V135,0) -> 53 | AA135: 12 | AB135: -9 | AC135: -1 | AD135: -12 | AE135: 11 | AF135: 11 | AH135: 0 | AI135: 10.5 | AJ135: 6.5 | AK135: 12 | AL135: 0.5 | AM135: 0.5
A136: 2012-08-16 | B136: -1 | C136: 65 | D136: 54 | F136: -1 | G136: 54 | H136: 64 | J136: 1 | K136: 59 | L136: 59 | N136: 1 | O136: 53 | P136: 64 | R136: 1 | S136: 65 | T136: 53 | V136: -1 | W136: 64 | X136: 54 | AA136: 11 | AB136: -10 | AC136: 0 | AD136: -11 | AE136: 12 | AF136: 10 | AH136: 0.5 | AI136: 11 | AJ136: 6 | AK136: 11.5 | AL136: 0 | AM136: 1
A137: 2012-08-17 | B137: -1 | C137: 65 | D137: 55 | F137: -1 | G137: 54 | H137: 65 | J137: 1 | K137: 60 | L137: 59 | N137: 1 | O137: 54 | P137: 64 | R137: 1 | S137: 66 | T137: 53 | V137: -1 | W137: 64 | X137: 55 | AA137: 10 | AB137: -11 | AC137: 1 | AD137: -10 | AE137: 13 | AF137: 9 | AH137: 1.5 | AI137: 12 | AJ137: 6 | AK137: 11.5 | AL137: 0 | AM137: 2
A138: 2012-08-18 | B138: 1 | C138: =C137+IF(B138>0,B138,0) -> 66 | D138: =D137-IF(B138<0,B138,0) -> 55 | F138: 1 | G138: =G137+IF(F138>0,F138,0) -> 55 | H138: =H137-IF(F138<0,F138,0) -> 65 | J138: 1 | K138: 61 | L138: 59 | N138: -1 | O138: 54 | P138: 65 | R138: -1 | S138: 66 | T138: 54 | V138: 1 | W138: 65 | X138: 55 | AA138: 11 | AB138: -10 | AC138: 2 | AD138: -11 | AE138: 12 | AF138: 10 | AH138: 0.5 | AI138: 11 | AJ138: 5 | AK138: 11.5 | AL138: 0 | AM138: 1
A139: 2012-08-19 | B139: 1 | C139: 67 | D139: 55 | F139: 1 | G139: 56 | H139: 65 | J139: 1 | K139: 62 | L139: 59 | N139: -1 | O139: 54 | P139: 66 | R139: 1 | S139: 67 | T139: 54 | V139: -1 | W139: 65 | X139: 56 | AA139: 12 | AB139: -9 | AC139: 3 | AD139: -12 | AE139: 13 | AF139: 9 | AH139: 0.5 | AI139: 11 | AJ139: 5 | AK139: 12.5 | AL139: 0 | AM139: 2
A140: 2012-08-20 | B140: -1 | C140: 67 | D140: 56 | F140: 1 | G140: 57 | H140: 65 | J140: -1 | K140: 62 | L140: 60 | N140: 1 | O140: 55 | P140: 66 | R140: -1 | S140: 67 | T140: 55 | W140: 65 | X140: 56 | AA140: 11 | AB140: -8 | AC140: 2 | AD140: -11 | AE140: 12 | AF140: 9 | AH140: 0.5 | AI140: 10 | AJ140: 5 | AK140: 11.5 | AL140: 0 | AM140: 1.5
A141: 2012-08-21 | B141: -1 | C141: 67 | D141: 57 | F141: -1 | G141: 57 | H141: 66 | J141: -1 | K141: 62 | L141: 61 | N141: 1 | O141: 56 | P141: 66 | R141: -1 | S141: 67 | T141: 56 | V141: 1 | W141: 66 | X141: 56 | AA141: 10 | AB141: -9 | AC141: 1 | AD141: -10 | AE141: 11 | AF141: 10 | AH141: 0.5 | AI141: 10 | AJ141: 5 | AK141: 10.5 | AL141: 0 | AM141: 0.5
A142: 2012-08-22 | B142: -1 | C142: 67 | D142: 58 | F142: -1 | G142: 57 | H142: 67 | J142: 2 | K142: 64 | L142: 61 | N142: 1 | O142: 57 | P142: 66 | R142: -1 | S142: =S141+IF(R142>0,R142,0) -> 67 | T142: =T141-IF(R142<0,R142,0) -> 57 | V142: 1 | W142: 67 | X142: 56 | AA142: 9 | AB142: -10 | AC142: 3 | AD142: -9 | AE142: 10 | AF142: 11 | AH142: 1 | AI142: 10.5 | AJ142: 4 | AK142: 10 | AL142: 0.5 | AM142: 0
A143: 2012-08-23 | C143: 67 | D143: 58 | F143: 1 | G143: 58 | H143: 67 | K143: 64 | L143: 61 | O143: 57 | P143: 66 | S143: 67 | T143: 57 | V143: 1 | W143: 68 | X143: 56 | AA143: 9 | AB143: -9 | AC143: 3 | AD143: -9 | AE143: 10 | AF143: 12 | AH143: 1.5 | AI143: 10.5 | AJ143: 4.5 | AK143: 10.5 | AL143: 1 | AM143: 0
A144: 2012-08-24 | B144: 1 | C144: 68 | D144: 58 | F144: 1 | G144: 59 | H144: 67 | J144: -1 | K144: 64 | L144: 62 | N144: 1 | O144: 58 | P144: 66 | R144: -1 | S144: 67 | T144: 58 | V144: 1 | W144: 69 | X144: 56 | AA144: 10 | AB144: -8 | AC144: 2 | AD144: -8 | AE144: 9 | AF144: 13 | AH144: 1.5 | AI144: 10.5 | AJ144: 5.5 | AK144: 10.5 | AL144: 2 | AM144: 0
A145: 2012-08-25 | B145: 1 | C145: 69 | D145: 58 | F145: 1 | G145: 60 | H145: 67 | J145: -1 | K145: 64 | L145: 63 | N145: -1 | O145: 58 | P145: 67 | R145: 1 | S145: 68 | T145: 58 | V145: -1 | W145: 69 | X145: 57 | AA145: 11 | AB145: -7 | AC145: 1 | AD145: -9 | AE145: 10 | AF145: 12 | AH145: 0.5 | AI145: 9.5 | AJ145: 5.5 | AK145: 10.5 | AL145: 1 | AM145: 0
A146: 2012-08-26 | B146: -1 | C146: 69 | D146: 59 | F146: 1 | G146: 61 | H146: 67 | J146: -1 | K146: 64 | L146: 64 | N146: 1 | O146: 59 | P146: 67 | R146: -1 | S146: 68 | T146: 59 | V146: 1 | W146: 70 | X146: 57 | AA146: 10 | AB146: -6 | AC146: 0 | AD146: -8 | AE146: 9 | AF146: 13 | AH146: 1.5 | AI146: 9.5 | AJ146: 6.5 | AK146: 10.5 | AL146: 2 | AM146: 0
A147: 2012-08-27 | B147: -1 | C147: 69 | D147: 60 | G147: 61 | H147: 67 | J147: -1 | K147: 64 | L147: 65 | N147: 1 | O147: =O146+IF(N147>0,N147,0) -> 60 | P147: =P146-IF(N147<0,N147,0) -> 67 | R147: -1 | S147: =S146+IF(R147>0,R147,0) -> 68 | T147: =T146-IF(R147<0,R147,0) -> 60 | V147: 1 | W147: 71 | X147: 57 | AA147: 9 | AB147: -6 | AC147: -1 | AD147: -7 | AE147: 8 | AF147: 14 | AH147: 2.5 | AI147: 10 | AJ147: 7.5 | AK147: 10.5 | AL147: 3 | AM147: 0
A148: 2012-08-28 | B148: -1 | C148: 69 | D148: 61 | F148: -1 | G148: 61 | H148: 68 | J148: -1 | K148: 64 | L148: 66 | N148: 1 | O148: 61 | P148: 67 | R148: 1 | S148: 69 | T148: 60 | V148: -1 | W148: 71 | X148: 58 | AA148: 8 | AB148: -7 | AC148: -2 | AD148: -6 | AE148: 9 | AF148: 13 | AH148: 2.5 | AI148: 10 | AJ148: 7.5 | AK148: 9.5 | AL148: 2 | AM148: 0
A149: 2012-08-29 | B149: 1 | C149: 70 | D149: 61 | F149: -1 | G149: 61 | H149: 69 | J149: -1 | K149: 64 | L149: 67 | N149: 1 | O149: 62 | P149: 67 | R149: 1 | S149: 70 | T149: 60 | V149: -1 | W149: 71 | X149: 59 | AA149: 9 | AB149: -8 | AC149: -3 | AD149: -5 | AE149: 10 | AF149: 12 | AH149: 1.5 | AI149: 10 | AJ149: 7.5 | AK149: 8.5 | AL149: 1 | AM149: 0
A150: 2012-08-30 | B150: -1 | C150: 70 | D150: 62 | F150: 1 | G150: 62 | H150: 69 | J150: 1 | K150: 65 | L150: 67 | N150: -1 | O150: 62 | P150: 68 | S150: 70 | T150: 60 | V150: -1 | W150: 71 | X150: 60 | AA150: 8 | AB150: -7 | AC150: -2 | AD150: -6 | AE150: 10 | AF150: 11 | AH150: 1.5 | AI150: 9 | AJ150: 6.5 | AK150: 8.5 | AL150: 0.5 | AM150: 0
A151: 2012-08-31 | B151: -1 | C151: 70 | D151: 63 | F151: 1 | G151: 63 | H151: 69 | J151: 1 | K151: 66 | L151: 67 | N151: 1 | O151: 63 | P151: 68 | R151: -1 | S151: 70 | T151: 61 | V151: -1 | W151: 71 | X151: 61 | AA151: 7 | AB151: -6 | AC151: -1 | AD151: -5 | AE151: 9 | AF151: 10 | AH151: 1.5 | AI151: 8 | AJ151: 5.5 | AK151: 7.5 | AL151: 0.5 | AM151: 0
A152: 2012-09-01 | B152: 1 | C152: 71 | D152: 63 | F152: 1 | G152: 64 | H152: 69 | J152: -1 | K152: 66 | L152: 68 | N152: 1 | O152: 64 | P152: 68 | R152: -1 | S152: 70 | T152: 62 | V152: 1 | W152: 72 | X152: 61 | AA152: 8 | AB152: -5 | AC152: -2 | AD152: -4 | AE152: 8 | AF152: 11 | AH152: 1.5 | AI152: 8 | AJ152: 6.5 | AK152: 7.5 | AL152: 1.5 | AM152: 0
A153: 2012-09-02 | B153: 1 | C153: 72 | D153: 63 | F153: -1 | G153: 64 | H153: 70 | J153: -1 | K153: 66 | L153: 69 | N153: 1 | O153: 65 | P153: 68 | R153: -1 | S153: 70 | T153: 63 | V153: -1 | W153: 72 | X153: 62 | AA153: 9 | AB153: -6 | AC153: -3 | AD153: -3 | AE153: 7 | AF153: 10 | AH153: 0.5 | AI153: 8 | AJ153: 6.5 | AK153: 6.5 | AL153: 1.5 | AM153: 0
A154: 2012-09-03 | B154: 1 | C154: 73 | D154: 63 | F154: 1 | G154: 65 | H154: 70 | J154: -1 | K154: 66 | L154: 70 | N154: -1 | O154: 65 | P154: 69 | R154: -1 | S154: 70 | T154: 64 | V154: 1 | W154: 73 | X154: 62 | AA154: 10 | AB154: -5 | AC154: -4 | AD154: -4 | AE154: 6 | AF154: 11 | AH154: 0.5 | AI154: 8 | AJ154: 7.5 | AK154: 7.5 | AL154: 2.5 | AM154: 0
A155: 2012-09-04 | B155: -1 | C155: =C154+IF(B155>0,B155,0) -> 73 | D155: =D154-IF(B155<0,B155,0) -> 64 | F155: -1 | G155: 65 | H155: 71 | J155: 1 | K155: 67 | L155: 70 | N155: 1 | O155: 66 | P155: 69 | R155: 1 | S155: 71 | T155: 64 | V155: 1 | W155: 74 | X155: 62 | AA155: 9 | AB155: -6 | AC155: -3 | AD155: -3 | AE155: 7 | AF155: 12 | AH155: 1.5 | AI155: 9 | AJ155: 7.5 | AK155: 7.5 | AL155: 2.5 | AM155: 0
A156: 2012-09-05 | B156: -1 | C156: 73 | D156: 65 | F156: 1 | G156: 66 | H156: 71 | J156: 1 | K156: 68 | L156: 70 | N156: 1 | O156: 67 | P156: 69 | R156: 1 | S156: 72 | T156: 64 | V156: -1 | W156: 74 | X156: 63 | AA156: 8 | AB156: -5 | AC156: -2 | AD156: -2 | AE156: 8 | AF156: 11 | AH156: 1.5 | AI156: 8 | AJ156: 6.5 | AK156: 6.5 | AL156: 1.5 | AM156: 0
A157: 2012-09-06 | C157: 73 | D157: 65 | G157: =G156+IF(F157>0,F157,0) -> 66 | H157: =H156-IF(F157<0,F157,0) -> 71 | K157: 68 | L157: 70 | N157: -1 | O157: 67 | P157: 70 | S157: 72 | T157: 64 | W157: 74 | X157: 63 | AA157: 8 | AB157: -5 | AC157: -2 | AD157: -3 | AE157: 8 | AF157: 11 | AH157: 1.5 | AI157: 8 | AJ157: 6.5 | AK157: 7 | AL157: 1.5 | AM157: 0
A158: 2012-09-07 | B158: -1 | C158: 73 | D158: 66 | F158: 1 | G158: 67 | H158: 71 | J158: -1 | K158: 68 | L158: 71 | N158: 1 | O158: 68 | P158: 70 | R158: -1 | S158: 72 | T158: 65 | V158: -1 | W158: 74 | X158: 64 | AA158: 7 | AB158: -4 | AC158: -3 | AD158: -2 | AE158: 7 | AF158: 10 | AH158: 1.5 | AI158: 7 | AJ158: 6.5 | AK158: 6 | AL158: 1.5 | AM158: 0
A159: 2012-09-08 | B159: 1 | C159: 74 | D159: 66 | G159: 67 | H159: 71 | J159: 1 | K159: 69 | L159: 71 | N159: 1 | O159: 69 | P159: 70 | R159: -1 | S159: 72 | T159: 66 | V159: -1 | W159: 74 | X159: 65 | AA159: 8 | AB159: -4 | AC159: -2 | AD159: -1 | AE159: 6 | AF159: 9 | AH159: 0.5 | AI159: 6.5 | AJ159: 5.5 | AK159: 5 | AL159: 1.5 | AM159: 0
A160: 2012-09-09 | B160: -1 | C160: 74 | D160: 67 | F160: 2 | G160: 69 | H160: 71 | J160: -1 | K160: 69 | L160: 72 | N160: -1 | O160: 69 | P160: 71 | R160: -1 | S160: 72 | T160: 67 | V160: 1 | W160: 75 | X160: 65 | AA160: 7 | AB160: -2 | AC160: -3 | AD160: -2 | AE160: 5 | AF160: 10 | AH160: 1.5 | AI160: 6 | AJ160: 6.5 | AK160: 6 | AL160: 2.5 | AM160: 0
A161: 2012-09-10 | C161: 74 | D161: 67 | F161: 1 | G161: 70 | H161: 71 | K161: 69 | L161: 72 | N161: 1 | O161: 70 | P161: 71 | R161: -1 | S161: 72 | T161: 68 | V161: -1 | W161: 75 | X161: 66 | AA161: 7 | AB161: -1 | AC161: -3 | AD161: -1 | AE161: 4 | AF161: 9 | AH161: 1 | AI161: 5 | AJ161: 6 | AK161: 5 | AL161: 2.5 | AM161: 0
A162: 2012-09-11 | B162: -1 | C162: 74 | D162: 68 | F162: 1 | G162: 71 | H162: 71 | J162: 1 | K162: 70 | L162: 72 | N162: 1 | O162: 71 | P162: 71 | R162: -1 | S162: 72 | T162: 69 | V162: -1 | W162: 75 | X162: 67 | AA162: 6 | AB162: 0 | AC162: -2 | AD162: 0 | AE162: 3 | AF162: 8 | AH162: 1 | AI162: 4 | AJ162: 5 | AK162: 4 | AL162: 2.5 | AM162: 0
A163: 2012-09-12 | B163: -1 | C163: 74 | D163: 69 | F163: 1 | G163: 72 | H163: 71 | J163: 1 | K163: 71 | L163: 72 | N163: 1 | O163: 72 | P163: 71 | R163: -1 | S163: 72 | T163: 70 | V163: -1 | W163: 75 | X163: 68 | AA163: 5 | AB163: 1 | AC163: -1 | AD163: 1 | AE163: 2 | AF163: 7 | AH163: 1 | AI163: 3 | AJ163: 4 | AK163: 3 | AL163: 2.5 | AM163: 0
A164: 2012-09-13 | B164: -1 | C164: 74 | D164: 70 | F164: -1 | G164: 72 | H164: 72 | K164: 71 | L164: 72 | O164: 72 | P164: 71 | S164: 72 | T164: 70 | V164: 1 | W164: 76 | X164: 68 | AA164: 4 | AB164: 0 | AC164: -1 | AD164: 1 | AE164: 2 | AF164: 8 | AH164: 2 | AI164: 4 | AJ164: 4.5 | AK164: 3.5 | AL164: 3 | AM164: 0
A165: 2012-09-14 | B165: 1 | C165: 75 | D165: 70 | F165: 1 | G165: 73 | H165: 72 | J165: -1 | K165: =K164+IF(J165>0,J165,0) -> 71 | L165: =L164-IF(J165<0,J165,0) -> 73 | N165: -1 | O165: 72 | P165: 72 | R165: -1 | S165: =S164+IF(R165>0,R165,0) -> 72 | T165: =T164-IF(R165<0,R165,0) -> 71 | V165: -1 | W165: 76 | X165: 69 | AA165: 5 | AB165: 1 | AC165: -2 | AD165: 0 | AE165: 1 | AF165: 7 | AH165: 1 | AI165: 3 | AJ165: 4.5 | AK165: 3.5 | AL165: 3 | AM165: 0
A166: 2012-09-15 | B166: 1 | C166: =C165+IF(B166>0,B166,0) -> 76 | D166: =D165-IF(B166<0,B166,0) -> 70 | F166: -1 | G166: 73 | H166: 73 | J166: -1 | K166: 71 | L166: 74 | N166: 1 | O166: 73 | P166: 72 | R166: 1 | S166: 73 | T166: 71 | V166: -1 | W166: 76 | X166: 70 | AA166: =C166-D166 -> 6 | AB166: =G166-H166 -> 0 | AC166: =K166-L166 -> -3 | AD166: =O166-P166 -> 1 | AE166: =S166-T166 -> 2 | AF166: =W166-X166 -> 6 | AH166: =(MAX($AA166:$AF166)-AA166)/2 -> 0 | AI166: =(MAX($AA166:$AF166)-AB166)/2 -> 3 | AJ166: =(MAX($AA166:$AF166)-AC166)/2 -> 4.5 | AK166: =(MAX($AA166:$AF166)-AD166)/2 -> 2.5 | AL166: =(MAX($AA166:$AF166)-AE166)/2 -> 2 | AM166: =(MAX($AA166:$AF166)-AF166)/2 -> 0
A167: 2012-09-16 | B167: -1 | C167: 76 | D167: 71 | F167: -1 | G167: =G166+IF(F167>0,F167,0) -> 73 | H167: =H166-IF(F167<0,F167,0) -> 74 | J167: 1 | K167: 72 | L167: 74 | N167: 1 | O167: =O166+IF(N167>0,N167,0) -> 74 | P167: =P166-IF(N167<0,N167,0) -> 72 | R167: -1 | S167: 73 | T167: 72 | V167: 1 | W167: =W166+IF(V167>0,V167,0) -> 77 | X167: =X166-IF(V167<0,V167,0) -> 70 | AA167: 5 | AB167: -1 | AC167: -2 | AD167: 2 | AE167: 1 | AF167: 7 | AH167: 1 | AI167: 4 | AJ167: 4.5 | AK167: 2.5 | AL167: 3 | AM167: 0
A168: 2012-09-17 | C168: 76 | D168: 71 | F168: 1 | G168: 74 | H168: 74 | K168: 72 | L168: 74 | O168: 74 | P168: 72 | R168: 1 | S168: 74 | T168: 72 | W168: 77 | X168: 70 | AA168: 5 | AB168: 0 | AC168: -2 | AD168: 2 | AE168: 2 | AF168: 7 | AH168: 1 | AI168: 3.5 | AJ168: 4.5 | AK168: 2.5 | AL168: 2.5 | AM168: 0
A169: 2012-09-18 | C169: 76 | D169: 71 | G169: 74 | H169: 74 | J169: 1 | K169: 73 | L169: 74 | N169: 1 | O169: 75 | P169: 72 | R169: -1 | S169: 74 | T169: 73 | V169: 1 | W169: 78 | X169: 70 | AA169: 5 | AB169: 0 | AC169: -1 | AD169: 3 | AE169: 1 | AF169: 8 | AH169: 1.5 | AI169: 4 | AJ169: 4.5 | AK169: 2.5 | AL169: 3.5 | AM169: 0
A170: 2012-09-19 | B170: 0 | C170: 77 | D170: 72 | F170: 1 | G170: 75 | H170: 74 | J170: 1 | K170: 74 | L170: 74 | N170: 1 | O170: 76 | P170: 72 | R170: -1 | S170: 74 | T170: 74 | V170: 1 | W170: 79 | X170: 70 | AA170: 5 | AB170: 1 | AC170: 0 | AD170: 4 | AE170: 0 | AF170: 9 | AH170: 2 | AI170: 4 | AJ170: 4.5 | AK170: 2.5 | AL170: 4.5 | AM170: 0
A171: 2012-09-20 | B171: -1 | C171: 77 | D171: 73 | F171: 1 | G171: 76 | H171: 74 | J171: -1 | K171: 74 | L171: 75 | N171: 1 | O171: 77 | P171: 72 | R171: -1 | S171: 74 | T171: 75 | V171: 1 | W171: 80 | X171: 70 | AA171: 4 | AB171: 2 | AC171: -1 | AD171: 5 | AE171: -1 | AF171: 10 | AH171: 3 | AI171: 4 | AJ171: 5.5 | AK171: 2.5 | AL171: 5.5 | AM171: 0
A172: 2012-09-21 | B172: 1 | C172: 78 | D172: 73 | F172: 1 | G172: 77 | H172: 74 | J172: 1 | K172: 75 | L172: 75 | N172: 1 | O172: 78 | P172: 72 | R172: -1 | S172: 74 | T172: 76 | V172: -1 | W172: 80 | X172: 71 | AA172: 5 | AB172: 3 | AC172: 0 | AD172: 6 | AE172: -2 | AF172: 9 | AH172: 2 | AI172: 3 | AJ172: 4.5 | AK172: 1.5 | AL172: 5.5 | AM172: 0
A173: 2012-09-22 | B173: -1 | C173: 78 | D173: 74 | F173: -1 | G173: 77 | H173: 75 | J173: 1 | K173: 76 | L173: 75 | N173: -1 | O173: 78 | P173: 73 | R173: -1 | S173: 74 | T173: 77 | V173: 1 | W173: 81 | X173: 71 | AA173: 4 | AB173: 2 | AC173: 1 | AD173: 5 | AE173: -3 | AF173: 10 | AH173: 3 | AI173: 4 | AJ173: 4.5 | AK173: 2.5 | AL173: 6.5 | AM173: 0
A174: 2012-09-23 | B174: 1 | C174: 79 | D174: 74 | F174: -1 | G174: 77 | H174: 76 | J174: 1 | K174: 77 | L174: 75 | N174: 1 | O174: 79 | P174: 73 | R174: 1 | S174: 75 | T174: 77 | V174: 1 | W174: 82 | X174: 71 | AA174: 5 | AB174: 1 | AC174: 2 | AD174: 6 | AE174: -2 | AF174: 11 | AH174: 3 | AI174: 5 | AJ174: 4.5 | AK174: 2.5 | AL174: 6.5 | AM174: 0
A175: 2012-09-24 | C175: 79 | D175: 74 | G175: 77 | H175: 76 | J175: -1 | K175: 77 | L175: 76 | N175: -1 | O175: 79 | P175: 74 | R175: -1 | S175: 75 | T175: 78 | V175: 1 | W175: 83 | X175: 71 | AA175: 5 | AB175: 1 | AC175: 1 | AD175: 5 | AE175: -3 | AF175: 12 | AH175: 3.5 | AI175: 5.5 | AJ175: 5.5 | AK175: 3.5 | AL175: 7.5 | AM175: 0
A176: 2012-09-25 | B176: -1 | C176: =C175+IF(B176>0,B176,0) -> 79 | D176: =D175-IF(B176<0,B176,0) -> 75 | F176: 1 | G176: 78 | H176: 76 | J176: 1 | K176: 78 | L176: 76 | N176: -1 | O176: 79 | P176: 75 | R176: 1 | S176: 76 | T176: 78 | V176: 1 | W176: 84 | X176: 71 | AA176: 4 | AB176: 2 | AC176: 2 | AD176: 4 | AE176: -2 | AF176: 13 | AH176: 4.5 | AI176: 5.5 | AJ176: 5.5 | AK176: 4.5 | AL176: 7.5 | AM176: 0
A177: 2012-09-26 | B177: 1 | C177: 80 | D177: 75 | F177: -1 | G177: 78 | H177: 77 | J177: -1 | K177: 78 | L177: 77 | N177: 1 | O177: 80 | P177: 75 | R177: -1 | S177: 76 | T177: 79 | V177: -1 | W177: 84 | X177: 72 | AA177: 5 | AB177: 1 | AC177: 1 | AD177: 5 | AE177: -3 | AF177: 12 | AH177: 3.5 | AI177: 5.5 | AJ177: 5.5 | AK177: 3.5 | AL177: 7.5 | AM177: 0
A178: 2012-09-27 | B178: 1 | C178: 81 | D178: 75 | F178: -1 | G178: 78 | H178: 78 | J178: -1 | K178: 78 | L178: 78 | N178: -1 | O178: 80 | P178: 76 | R178: -1 | S178: 76 | T178: 80 | W178: 84 | X178: 72 | AA178: 6 | AB178: 0 | AC178: 0 | AD178: 4 | AE178: -4 | AF178: 12 | AH178: 3 | AI178: 6 | AJ178: 6 | AK178: 4 | AL178: 8 | AM178: 0
A179: 2012-09-28 | B179: 1 | C179: 82 | D179: 75 | F179: -1 | G179: 78 | H179: 79 | J179: 1 | K179: 79 | L179: 78 | N179: -1 | O179: 80 | P179: 77 | R179: -1 | S179: 76 | T179: 81 | V179: 1 | W179: 85 | X179: 72 | AA179: 7 | AB179: -1 | AC179: 1 | AD179: 3 | AE179: -5 | AF179: 13 | AH179: 3 | AI179: 7 | AJ179: 6 | AK179: 5 | AL179: 9 | AM179: 0
A180: 2012-09-29 | B180: 1 | C180: 83 | D180: 75 | F180: 1 | G180: 79 | H180: 79 | J180: 1 | K180: 80 | L180: 78 | N180: 1 | O180: 81 | P180: 77 | R180: 1 | S180: 77 | T180: 81 | V180: -1 | W180: 85 | X180: 73 | AA180: 8 | AB180: 0 | AC180: 2 | AD180: 4 | AE180: -4 | AF180: 12 | AH180: 2 | AI180: 6 | AJ180: 5 | AK180: 4 | AL180: 8 | AM180: 0
A181: 2012-09-30 | B181: 1 | C181: 84 | D181: 75 | F181: 1 | G181: 80 | H181: 79 | J181: -1 | K181: 80 | L181: 79 | N181: -1 | O181: 81 | P181: 78 | R181: -1 | S181: 77 | T181: 82 | V181: 1 | W181: 86 | X181: 73 | AA181: 9 | AB181: 1 | AC181: 1 | AD181: 3 | AE181: -5 | AF181: 13 | AH181: 2 | AI181: 6 | AJ181: 6 | AK181: 5 | AL181: 9 | AM181: 0 | AP181: Team | AQ181: GB | AR181: %
A182: 2012-10-01 | B182: 1 | C182: 85 | D182: 75 | F182: 1 | G182: 81 | H182: 79 | J182: -1 | K182: 80 | L182: 80 | N182: 1 | O182: 82 | P182: 78 | R182: 1 | S182: 78 | T182: 82 | V182: 1 | W182: 87 | X182: 73 | AA182: 10 | AB182: 2 | AC182: 0 | AD182: 4 | AE182: -4 | AF182: 14 | AH182: 2 | AI182: 6 | AJ182: 7 | AK182: 5 | AL182: 9 | AM182: 0 | AP182: =AM$1 -> STL | AQ182: =AM$185 -> 0 | AR182: =AM$187 -> 0.5432098765
A183: 2012-10-02 | B183: -1 | C183: 85 | D183: 76 | F183: -1 | G183: 81 | H183: 80 | J183: 1 | K183: 81 | L183: 80 | N183: 1 | O183: 83 | P183: 78 | R183: 1 | S183: 79 | T183: 82 | V183: -1 | W183: 87 | X183: 74 | AA183: 9 | AB183: 1 | AC183: 1 | AD183: 5 | AE183: -3 | AF183: 13 | AH183: 2 | AI183: 6 | AJ183: 6 | AK183: 4 | AL183: 8 | AM183: 0 | AP183: =AH$1 -> LAD | AQ183: =AH$185 -> 2 | AR183: =AH$187 -> 0.5308641975
A184: 2012-10-03 | B184: 1 | C184: 86 | D184: 76 | F184: -1 | G184: 81 | H184: 81 | J184: -1 | K184: 81 | L184: 81 | N184: -1 | O184: 83 | P184: 79 | R184: -1 | S184: 79 | T184: 83 | V184: 1 | W184: 88 | X184: 74 | AA184: 10 | AB184: 0 | AC184: 0 | AD184: 4 | AE184: -4 | AF184: 14 | AH184: 2 | AI184: 7 | AJ184: 7 | AK184: 5 | AL184: 9 | AM184: 0 | AP184: =AK$1 -> MIL | AQ184: =AK$185 -> 5 | AR184: =AK$187 -> 0.512345679
A185: 2012-10-04 | C185: 86 | D185: 76 | G185: 81 | H185: 81 | K185: 81 | L185: 81 | O185: 83 | P185: 79 | S185: 79 | T185: 83 | W185: 88 | X185: 74 | AA185: 10 | AB185: 0 | AC185: 0 | AD185: 4 | AE185: -4 | AF185: 14 | AH185: 2 | AI185: 7 | AJ185: 7 | AK185: 5 | AL185: 9 | AM185: 0 | AP185: =AJ$1 -> ARZ | AQ185: =AJ$185 -> 7 | AR185: =AJ$187 -> 0.5
AP186: =AI$1 -> PHI | AQ186: =AI$185 -> 7 | AR186: =AI$187 -> 0.5
AH187: =C185/(C185+D185) -> 0.5308641975 | AI187: =G185/(G185+H185) -> 0.5 | AJ187: =K185/(K185+L185) -> 0.5 | AK187: =O185/(O185+P185) -> 0.512345679 | AL187: =S185/(S185+T185) -> 0.487654321 | AM187: =W185/(W185+X185) -> 0.5432098765 | AP187: =AL$1 -> PIT | AQ187: =AL$185 -> 9 | AR187: =AL$187 -> 0.487654321
